{"text_format":"1","workbook":"xlsx","n_sheets":5,"sheets":["Dati input","Contratto","Allegato CCC","PAM","Piano di ammortamento"],"not_rendered":{"charts":0,"images":2,"macros":1,"external_links":0,"defined_names":3,"comments":0,"pivot_tables":0},"unopened":[],"bounds":{"document_bytes":16777216,"sheet_cells":100000,"rows_first":2000,"rows_last":500,"rows_between":2000,"halvings":0,"cell_chars":16384,"cell_head_chars":4096},"cells_cut":0,"cells_raw":0,"read":"whole","date_system":"1900"}

{"sheet":"Dati input","index":0,"n_rows":63,"n_cols":38,"rows_kept":63,"cut":false,"hidden":false,"merged":[[0,8,0,32],[3,2,3,32],[9,2,9,32],[11,3,11,6],[13,2,13,32],[25,2,25,32],[16,3,16,4],[16,6,16,10],[16,11,16,18],[17,3,17,7],[19,3,19,4],[19,6,19,20],[19,21,19,29],[18,25,18,27],[17,25,17,27],[18,28,18,32],[18,3,18,23],[17,9,17,14],[17,15,17,23],[17,28,17,32],[15,3,15,18],[15,28,15,32],[15,19,15,27],[5,2,5,32],[7,2,7,7],[7,29,7,32],[7,23,7,28],[7,8,7,21],[35,2,35,32],[37,5,37,30],[37,31,37,32],[52,5,52,16],[52,17,52,20],[41,2,41,3],[44,2,44,32],[46,5,46,30],[48,5,48,30],[51,2,51,32],[47,5,47,30],[38,5,38,30],[38,31,38,32],[39,5,39,30],[39,31,39,32],[52,22,52,31],[62,2,62,32],[20,3,20,7],[20,8,20,27],[20,28,20,32],[21,3,21,7],[22,2,22,3],[22,4,22,10],[22,12,22,23],[22,24,22,32],[32,11,32,16],[32,18,32,29],[32,30,32,32],[23,3,23,32],[30,3,30,32],[28,3,28,7],[29,2,29,3],[27,3,27,32],[32,3,32,4],[32,6,32,10],[29,24,29,32],[28,9,28,15],[28,16,28,23],[29,4,29,10],[29,12,29,23],[31,3,31,32],[59,3,59,32],[54,2,54,32],[55,2,55,3],[56,3,56,32],[57,3,57,32],[58,3,58,32]]}
[]
[]
[]
[null,null,"ISTRUZIONI PER LA COMPILAZIONE\n1. Premi il tasto “Abilita Modifica”.\n2. Premi il tasto “Abilita Contenuti”, le macro sono state disabilitate per effettuare i calcoli necessari al preventivo.\n3. Inserisci i dati richiesti nelle celle verdi.\n4. Seleziona il pulsante CALCOLA per verificare il TAEG.\n5. Seleziona il pulsante STAMPA per generare il PDF precompilato che conterrà la Proposta contrattuale.\nSe hai bisogno di ricompilare la Proposta e stamparne una nuova versione, prima di selezionare nuovamente il pulsante “Stampa” verifica di aver chiuso il PDF della versione salvata in precedenza."]
[]
[null,null,"DATI PER IL CONTRATTO"]
[]
[null,null,"Nome e Congnome del Rappresentante della Banca che firma il contratto",null,null,null,null,null,null,null,null,null,null,null,null,null,null,null,null,null,null,null,null,"Numero contratto"]
[]
[null,null,"DATI DEL RICHIEDENTE / BENEFICIARIO"]
[]
[null,null,"Tipo Richiedente / Beneficiario","Persona Fisica"]
[]
[null,null,"Compilare solo se Richiedente / Beneficiario Pesona Fisica"]
[]
[null,null,"Cognome e Nome",null,null,null,null,null,null,null,null,null,null,null,null,null,null,null,null,"Codice Fiscale/Partita iva"]
[null,null,"Data di nascita",null,null,null,"Luogo di nascita"]
[null,null,"Comune di residenza",null,null,null,null,null,null,"Provincia di residenza",null,null,null,null,null,null,null,null,null,null,null,null,null,null,null,"CAP"]
[null,null,"Indirizzo di residenza",null,null,null,null,null,null,null,null,null,null,null,null,null,null,null,null,null,null,null,null,null,null,"N. civico"]
[null,null,"Stato civile",null,null,null,"Regime dei beni (separazione/comunione legale/…)"]
[null,null,"Qualifica",null,null,null,null,null,{"$f":"IF(D21=\"In proprio\",\"\",IF(D21=\"Socio\",\"Denominazione società di professionisti\",\"Denominazione associazione professionale\"))","v":"Denominazione associazione professionale"}]
[null,null,"Comune della sede della Ditta Individuale"]
[null,null,"Ufficio di iscrizione al Registro delle imprese nella città di",null,null,null,null,null,null,null,null,null,"Numero iscrizione al Registro delle Imprese"]
[null,null,"Codice Fiscale / Partita iva"]
[]
[null,null,"Compilare solo se Richiedente / Beneficiario Pesona Giuridica"]
[]
[null,null,"Denominazione / Ragione sociale"]
[null,null,"Comune della sede legale",null,null,null,null,null,null,"Capitale sociale di euro"]
[null,null,"Ufficio di iscrizione al Registro delle imprese nella città di",null,null,null,null,null,null,null,null,null,"Numero iscrizione al Registro delle Imprese"]
[null,null,"Partita iva"]
[null,null,"Cognome e Nome del Legale Rappresentante"]
[null,null,"Data di nascita del Legale Rappresentante",null,null,null,"Luogo di nascita",null,null,null,null,null,null,null,null,null,null,null,"Poteri facoltizzati da (es. Statuto, procura..)"]
[]
[]
[null,null,"CARATTERISTICHE DEL FINANZIAMENTO"]
[]
[null,null,"Importo richiesto",null,null,"Durata del periodo di ammortamento",null,null,null,null,null,null,null,null,null,null,null,null,null,null,null,null,null,null,null,null,null,null,null,null,null,9,null,null,null,{"$f":"NumToLet(D38)","v":"ZERO/"}]
[null,null,"Tipologia conto corrente di accredito",null,null,"Durata complessiva del finanziamento",null,null,null,null,null,null,null,null,null,null,null,null,null,null,null,null,null,null,null,null,null,null,null,null,null,null,null,null,null,{"$f":"NumToLet(D53)","v":{"$error":"#VALUE!"}}]
[null,null,"Data Proposta",null,null,"Presenza della garanzia Fondo Centrale 662/96",null,null,null,null,null,null,null,null,null,null,null,null,null,null,null,null,null,null,null,null,null,null,null,null,null,null,null,null,null,{"$f":"IF(OR(D38=\"\",D39=\"\",AF39=\"\",D41=\"\",AJ57=\"\"),\"KO\",\"\")","v":"KO"}]
[null,null,"Il Cliente ha acceso un c/c ISP negli ultimi 30 giorni?"]
[null,null,"IBAN di erogazione / addebito delle rate",null,null,null,null,null,null,null,null,null,null,null,null,null,null,null,null,null,null,null,null,null,null,null,null,null,null,null,null,null,null,null,null,{"$f":"NumToLet(AJ45)","v":{"$error":"#VALUE!"}}]
[]
[]
[null,null,"CONDIZIONI ECONOMICHE DEL FINANZIAMENTO",null,null,null,null,null,null,null,null,null,null,null,null,null,null,null,null,null,null,null,null,null,null,null,null,null,null,null,null,null,null,null,null,{"$f":"ROUND(VLOOKUP(AF39,PAM!A5:D79,4,FALSE),2)","v":{"$error":"#N/A"}},null,{"$f":"IF(D41=\"SI\",TRUE,FALSE)","v":false}]
[]
[null,null,"TAN",1.9E-2,null,"Avviso di scadenza e/o quietanza di pagamento",null,null,null,null,null,null,null,null,null,null,null,null,null,null,null,null,null,null,null,null,null,null,null,null,null,null,0]
[null,null,"Spese di istruttoria",0,null,"Imposta di bollo",null,null,null,null,null,null,null,null,null,null,null,null,null,null,null,null,null,null,null,null,null,null,null,null,null,null,{"$f":"IF(D39=\"ISP\",0,IF(0.25%*D38>16,16,0.25%*D38))","v":0}]
[null,null,"Spese comunicazioni di legge",0,null,null,null,null,null,null,null,null,null,null,null,null,null,null,null,null,null,null,null,null,null,null,null,null,null,null,null,null,{"$f":"TODAY()","v":"2021-01-18"}]
[null,null,"Spese istruttoria",null,null,null,null,null,null,null,null,null,null,null,null,null,null,null,null,null,null,null,null,null,null,null,null,null,null,null,null,null,"Importo rata"]
[]
[null,null,"RATE E COSTO DEL CREDITO"]
[null,null,"Importo di ciascuna rata (solo quota capitale)",{"$f":"IF(OR(D38=\"\",AF39=\"\"),\"na\",ROUND(D38/(AF39-AF38),2))","v":"na"},null,"TAEG",null,null,null,null,null,null,null,null,null,null,null,{"$f":"ROUND(PAM!K3,5)","v":0},null,null,null,null,"Costo complessivo del Credito*",null,null,null,null,null,null,null,null,null,{"$f":"ROUND(PAM!U3,5)","v":0}]
[]
[null,null,"FINALITA' DEL FINANZIAMENTO"]
[null,null,"Selezionare una delle seguenti opzioni:"]
[null,null,null,"Esigenze di liquidità nello svolgimento dell’attività professionale connesse allo stato di crisi"]
[null,null,null,"anticipazioni di costi da sostenere per progetti ed interventi da effettuarsi a fronte di committenze di uno o più incarichi professionali"]
[null,null,null,"acquisto di immobilizzazioni materiali e/o immateriali necessarie allo svolgimento dell’attività professionale"]
[null,null,null,"estinzione del debito scaduto nei confronti d’Inarcassa, come risultante dal certificato rilasciato dalla medesima; al riguardo, la Parte Finanziata ha conferito alla Banca mandato irrevocabile (ex art.1723, c. 2, codice civile) a bonificare a Inarcassa le somme rivenienti dall’erogazione del finanziamento nella misura necessaria ad estinguere il debito in questione"]
[]
[]
[null,null,"*Nel Costo complessivo del Credito sono conteggiati i costi dell'eventuale nuovo c/c ISP (10 € di canone + 2,85 € di bollo, come nel FI). TAN 1,90%"]

{"sheet":"Contratto","index":1,"n_rows":83,"n_cols":20,"rows_kept":83,"cut":false,"hidden":true,"merged":[[74,2,74,8],[82,2,82,8],[84,5,84,8],[5,2,5,8],[8,2,8,8],[30,2,30,8],[32,2,32,8],[41,2,41,8],[43,2,43,8],[47,2,47,8],[48,2,48,8],[49,2,49,8],[52,2,52,8],[53,2,53,8],[63,2,63,8],[64,2,64,8],[68,2,68,8],[46,2,46,8],[51,2,51,8],[55,2,55,8],[58,2,58,8],[60,2,60,8],[62,2,62,8],[65,2,65,8],[67,2,67,8],[66,2,66,8],[54,2,54,8],[56,2,56,8],[61,2,61,8],[20,2,20,8],[26,2,26,8],[23,2,23,8],[21,2,21,8],[35,2,35,8],[27,2,27,8],[28,2,28,8],[31,2,31,8],[22,2,22,8],[24,2,24,8],[25,2,25,8],[29,2,29,8],[34,2,34,8],[7,2,7,8],[2,5,2,8],[9,2,9,8],[4,2,4,8],[19,2,19,8],[11,3,11,8],[12,3,12,8],[13,3,13,8],[14,2,14,3],[14,4,14,5],[17,2,17,8],[18,2,18,8],[15,2,15,8],[16,2,16,8],[36,2,36,8],[39,2,39,8],[40,2,40,8],[44,2,44,8],[45,2,45,8],[37,2,37,8],[38,2,38,8]]}
[]
[]
[]
[]
[null,null,"Spett.le \nINTESA SANPAOLO SPA"]
[null,null,{"$f":"TODAY()","v":"2021-01-18"}]
[]
[null,null,"Oggetto: \nfinanziamento ai sensi della convenzione stipulata in data 05/11/2020 fra INARCASSA Cassa Nazionale di Previdenza ed Assistenza per gli Ingegneri ed Architetti Liberi Professionisti e Intesa San Paolo"]
[null,null,"Formuliamo, sulla base dello schema contrattuale predisposto dalla Banca e da noi compilato con l’ausilio del simulatore messo a disposizione dalla Banca medesima, la proposta contrattuale sotto riportata. Ai fini del perfezionamento del contratto, restiamo in attesa dell’accettazione della Banca."]
[null,null,"PROPOSTA CONTRATTUALE"]
[]
[null,null,"Cognome e Nome",{"$f":"IF('Dati input'!D16=\"\",\"\",'Dati input'!D16)","v":""}]
[null,null,"Residente in",{"$f":"IF('Dati input'!D18=\"\",\"\",CONCATENATE('Dati input'!D18,\", \",'Dati input'!D19,\" \",'Dati input'!AC19))","v":""}]
[null,null,"Partita iva / Codice fiscale",{"$f":"IF('Dati input'!AC16=\"\",\"\",'Dati input'!AC16)","v":""}]
[]
[null,null,"di seguito denominata “Parte finanziata”,"]
[null,null,{"$f":"IF('Dati input'!D21=\"In proprio\",\"in proprio,\",IF('Dati input'!D21=\"Associato\",CONCATENATE(\"quale associato dell’associazione professionale \",'Dati input'!AC21,\",\"),IF('Dati input'!D21=\"Socio\",CONCATENATE(\"quale socio della società di professionisti \",'Dati input'!AC21,\",\"),\"in proprio/quale associato dell’associazione professionale ____________/quale socio della società di professionisti ____________,\")))","v":"in proprio/quale associato dell’associazione professionale ____________/quale socio della società di professionisti ____________,"}]
[null,null,"e\nINTESA SANPAOLO S.p.A. (in seguito \"Banca\")\nstipulano il presente contratto di Finanziamento, ai sensi della convenzione stipulata in data 05/11/2020 fra INARCASSA Cassa Nazionale di Previdenza ed Assistenza per gli Ingegneri ed Architetti Liberi Professionisti (di seguito “Inarcassa”) e Intesa SanPaolo."]
[null,null,"***************************\nAlla presente viene premesso, quale parte integrante della stessa, il seguente “Documento di Sintesi\".\nDOCUMENTO DI SINTESI (\"DDS\")\nN. 1/2021\nCONDIZIONI ECONOMICHE"]
[]
[null,null,{"$f":"CONCATENATE(\"- Durata: \",'Dati input'!AF39,\" mesi, considerando come un mese intero quello in corso dalla data di erogazione, comprensivo di un periodo di preammortamento.\")","v":"- Durata:  mesi, considerando come un mese intero quello in corso dalla data di erogazione, comprensivo di un periodo di preammortamento."}]
[null,null,"- Tasso d’interesse: fisso, pari al 1,90 % nominale annuo; in caso di ammissione al Fondo di Garanzia per le Piccole Medie Imprese sarà fisso pari al 1,75% nominale annuo."]
[null,null,"- Periodicità rate: mensili."]
[null,null,"- Pagamento degli interessi: a decorrere dalla data di erogazione."]
[null,null,"- Contributo interessi: gli interessi sono a carico di Inarcassa, ai sensi della convenzione stipulata con la Banca."]
[null,null,"- Periodo di pre ammortamento: 9 rate mensili."]
[null,null,{"$f":"CONCATENATE(\"- Ammortamento: il capitale sarà restituito in \",'Dati input'!AF39-9,\" rate di euro \",'Dati input'!D53,\" ciascuna, salvo l’ultima di euro \",ROUND(VLOOKUP('Dati input'!AF39,PAM!A4:D79,4,FALSE),2),\".\")","v":{"$error":"#N/A"}}]
[null,null,"- Interessi di mora: tasso nominale annuo pari al tasso contrattuale attualmente pari al 1,90% annuo maggiorato di 2 punti percentuali."]
[null,null,"- Compenso di estinzione anticipata: non è dovuto alcun compenso."]
[null,null,{"$f":"IF(AND('Dati input'!D39=\"Di altra Banca\",'Dati input'!D38<6400),\"- Trattamento tributario: imposta sostitutiva, attualmente 0,25%.\",IF(AND('Dati input'!D39=\"Di altra Banca\",'Dati input'!D38>=6400),\"- Trattamento tributario: imposta di bollo, attualmente 16 euro.\",\"\"))","v":""}]
[null,null,{"$f":"CONCATENATE(\"- Tasso annuo effettivo globale (TAEG): alla data odierna \",'Dati input'!R53*100,\"% annuo e per effetto degli interessi pagati da Inarcassa sarà pari a \",ROUND(PAM!N3,5)*100,\"% per la parte finanziata;\",\"in caso di ammissione al Fondo di Garanzia per le Piccole Medie Imprese, sarà pari al \",ROUND(PAM!R3,5)*100,\"% annuo e per effetto degli interessi pagati da Inarcassa sarà pari al \",ROUND(PAM!N3,5)*100,\"% per la parte finanziata.\",\"\")","v":"- Tasso annuo effettivo globale (TAEG): alla data odierna 0% annuo e per effetto degli interessi pagati da Inarcassa sarà pari a 0% per la parte finanziata;in caso di ammissione al Fondo di Garanzia per le Piccole Medie Imprese, sarà pari al 0% annuo e per effetto degli interessi pagati da Inarcassa sarà pari al 0% per la parte finanziata."}]
[null,null,"- Spese:\nA) istruttoria: euro 0; \nB) per eventuali volture: euro 0;\n    spese per invio di comunicazioni previste per legge : euro zero per ogni invio; \n    spese per invio di comunicazioni previste per legge con modalità on line: euro zero per ogni invio; \n    spese per incasso e avviso di scadenza rata o quietanza di pagamento: euro zero per ogni invio; \n    rilascio certificato di sussistenza credito: euro zero; \n    per riesame pratica richiesta dal mutuatario zero \n    Non sono dovute in ogni caso spese per le comunicazioni esenti ai sensi di legge (attualmente art. 127 bis, comma 1 del TUB e art. 8 bis legge n. 40/2007)."]
[null,null,"***************************"]
[]
[null,null,"1.   Importo, finalità"]
[null,null,{"$f":"CONCATENATE(\"La Banca concede alla Parte Finanziata un finanziamento di euro \",TEXT('Dati input'!D38,\"#.###,00\"),\" (\",'Dati input'!AJ38,\" euro),  (di seguito Finanziamento).\")","v":"La Banca concede alla Parte Finanziata un finanziamento di euro ,00 (ZERO/ euro),  (di seguito Finanziamento)."},null,null,null,null,null,null,null,null,null,null,null,null,null,{"$f":"'Dati input'!AJ57","v":0}]
[null,null,{"$f":"IF(Q36=1,Q37,IF(Q36=2,R37,IF(Q36=3,S37,T37)))","v":"Il Finanziamento è finalizzato all'estinzione del debito scaduto nei confronti d’Inarcassa, come risultante dal certificato rilasciato dalla medesima; al riguardo, la Parte Finanziata ha conferito alla Banca mandato irrevocabile (ex art.1723, c. 2, codice civile) a bonificare a Inarcassa le somme rivenienti dall’erogazione del finanziamento nella misura necessaria ad estinguere il debito in questione."},null,null,null,null,null,null,null,null,null,null,null,null,null,"Il Finanziamento è finalizzato a esigenze di liquidità nello svolgimento dell’attività professionale connesse allo stato di crisi.","Il Finanziamento è finalizzato ad anticipazioni di costi da sostenere per progetti ed interventi da effettuarsi a fronte di committenze di uno o più incarichi professionali..","Il Finanziamento è finalizzato all'acquisto di immobilizzazioni materiali e/o immateriali necessarie allo svolgimento dell’attività professionale.","Il Finanziamento è finalizzato all'estinzione del debito scaduto nei confronti d’Inarcassa, come risultante dal certificato rilasciato dalla medesima; al riguardo, la Parte Finanziata ha conferito alla Banca mandato irrevocabile (ex art.1723, c. 2, codice civile) a bonificare a Inarcassa le somme rivenienti dall’erogazione del finanziamento nella misura necessaria ad estinguere il debito in questione."]
[null,null,"La Parte Finanziata s’impegna a richiedere, a valere sul presente mutuo, (ai sensi del decreto-legge n. 23/2020 e legge di conversione n.40/20, art. 13, comma 1), la garanzia di Banca del Mezzogiorno – MedioCredito Centrale S.p.A., sul Fondo di Garanzia per le Piccole Medie Imprese, costituito ai sensi della legge n. 662/1996, successive modifiche e integrazioni e relative norme attuative. Al riguardo, la Parte Finanziata si obbliga a presentare l’allegato 4 di Medio Credito Centrale per la richiesta della  predetta garanzia, in mancanza la Banca avrà facoltà di dichiarare risolto il Contratto.\nQualora la garanzia di cui sopra non venisse rilasciata o la richiesta non fosse possibile, la Banca potrà richiedere (ai sensi della convenzione stipulata con la Banca) la garanzia di Inarcassa e altresì eventuali garanzie fideiussorie di proprio gradimento. \nQualora anche la garanzia di Inarcassa non venisse rilasciata o la richiesta non fosse possibile, la Banca potrà richiedere garanzie fideiussorie di proprio gradimento; qualora non si perfezioni l'acquisizione delle garanzie fideiussorie, la Banca avrà facoltà di risolvere il Contratto."]
[]
[null,null,"2.   Modalità di erogazione e di addebito delle rate"]
[null,null,"L'erogazione sarà effettuata in unica soluzione a seguito dell’eventuale conclusione del contratto mediante accettazione da parte della Banca della Proposta Contrattuale presentata dalla Parte Finanziata.\nLa Parte Finanziata indica, ai fini dell’erogazione del Finanziamento e dell’addebito delle relative rate, il seguente codice IBAN di un conto a sé intestato:"]
[null,null,{"$f":"CONCATENATE('Dati input'!F42,'Dati input'!G42,'Dati input'!H42,'Dati input'!I42,'Dati input'!J42,'Dati input'!K42,'Dati input'!L42,'Dati input'!M42,'Dati input'!N42,'Dati input'!O42,'Dati input'!P42,'Dati input'!Q42,'Dati input'!R42,'Dati input'!S42,'Dati input'!T42,'Dati input'!U42,'Dati input'!V42,'Dati input'!W42,'Dati input'!X42,'Dati input'!Y42,'Dati input'!Z42,'Dati input'!AA42,'Dati input'!AB42,'Dati input'!AC42,'Dati input'!AD42,'Dati input'!AE42,'Dati input'!AF42)","v":""}]
[]
[null,null,"Con la sottoscrizione della presente proposta contrattuale, anche ai fini e per gli effetti di tutto quanto previsto dal Regolamento UE n. 2016/679 in materia di protezione dei dati personali (di seguito anche “GDPR”) ove applicabile,  la Parte Finanziata prende atto che la Banca comunicherà ad Inarcassa le informazioni e, tra queste, i dati personali relativi all’eventuale erogazione del finanziamento al fine di consentire a tale ultimo soggetto di adempiere agli obblighi assunti per effetto della convenzione stipulata con la Banca."]
[null,null,"3. Durata e modalità di rimborso"]
[null,null,{"$f":"CONCATENATE(\"a) La durata del finanziamento è stabilita in \",'Dati input'!AF39,\" mesi, considerando come un mese intero quello in corso dalla data di erogazione. Tale durata è comprensiva di un periodo di preammortamento.\")","v":"a) La durata del finanziamento è stabilita in  mesi, considerando come un mese intero quello in corso dalla data di erogazione. Tale durata è comprensiva di un periodo di preammortamento."}]
[null,null,{"$f":"CONCATENATE(\"b) Il pagamento degli interessi al tasso fisso di cui sopra avverrà con decorrenza dalla data di erogazione in n. \",'Dati input'!AF39,\" rate posticipate, con l'avvertenza che le prime 9 rate saranno di soli interessi; le scadenze saranno indicate nell’accettazione della Banca.\")","v":"b) Il pagamento degli interessi al tasso fisso di cui sopra avverrà con decorrenza dalla data di erogazione in n.  rate posticipate, con l'avvertenza che le prime 9 rate saranno di soli interessi; le scadenze saranno indicate nell’accettazione della Banca."}]
[null,null,"c) Gli interessi di cui sopra saranno a carico di Inarcassa, che li corrisponderà direttamente alla Banca."]
[null,null,{"$f":"CONCATENATE(\"d) Il capitale sarà restituito dalla parte finanziata in n. \",'Dati input'!AF39-'Dati input'!AF38,\" rate mensili di Euro \",'Dati input'!D53,\" (Euro \",'Dati input'!AJ39,\") ciascuna, salvo l’ultima di Euro \",'Dati input'!AJ45,\" (Euro \",'Dati input'!AJ42,\"); le scadenze saranno indicate nell’accettazione della Banca.\nLa Banca fornirà un piano di ammortamento dettagliato in occasione dell’eventuale accettazione della Proposta Contrattuale.\")","v":{"$error":"#VALUE!"}}]
[null,null,"e) La Parte Finanziata autorizza l’addebito degli importi delle singole rate sul c/c di cui all’art. 2 che si obbliga a tenere acceso per tutta la durata del Finanziamento e su cui si impegna a costituire tempestivamente la provvista necessaria al pagamento delle rate, così come previsto all'art.7 lettera d). "]
[]
[null,null,"4. Tasso di interesse"]
[null,null,{"$f":"CONCATENATE(\"Il tasso degli interessi a carico di Inarcassa viene pattuito per tutta la durata del mutuo nello 0,16% mensile pari al tasso nominale annuo del 1,90%. Il Tasso Annuo Effettivo Globale (TAEG) del presente mutuo, calcolato in data odierna è pari al \",'Dati input'!R53*100,\"% annuo e per effetto degli interessi pagati da Inarcassa sarà pari al \",ROUND(PAM!N3,5)*100,\"% per la parte finanziata sino a quando sussisteranno i requisiti previsti dall’art. 7ter.\")","v":"Il tasso degli interessi a carico di Inarcassa viene pattuito per tutta la durata del mutuo nello 0,16% mensile pari al tasso nominale annuo del 1,90%. Il Tasso Annuo Effettivo Globale (TAEG) del presente mutuo, calcolato in data odierna è pari al 0% annuo e per effetto degli interessi pagati da Inarcassa sarà pari al 0% per la parte finanziata sino a quando sussisteranno i requisiti previsti dall’art. 7ter."}]
[null,null,{"$f":"CONCATENATE(\"Nel caso in cui il Finanziamento sia ammesso alla garanzia (ai sensi del decreto-legge n. 23/2020 e legge di conversione n.40/20, art. 13, comma 1) di Banca del Mezzogiorno –\",\" Medio Credito Centrale S.p.A., sul Fondo di Garanzia per le Piccole Medie Imprese, costituito ai sensi della legge n. 662/1996,\",\" il tasso di cui al presente articolo verrà ridotto e sarà pari all’1,75%. \",\"In tal caso, il Tasso Annuo Effettivo Globale (TAEG) del presente mutuo, calcolato in data odierna sarà pari al \",ROUND(PAM!R3,5)*100,\"% annuo e per effetto degli interessi pagati da Inarcassa sarà pari al \",ROUND(PAM!N3,5)*100,\"% per la parte finanziata sino a quando sussisteranno i requisiti previsti dall’art. 7ter.\",\"\nGli interessi di cui al presente articolo saranno calcolati in base ad un mese di 30 giorni con divisore fisso 36.000 su base annua.\")","v":"Nel caso in cui il Finanziamento sia ammesso alla garanzia (ai sensi del decreto-legge n. 23/2020 e legge di conversione n.40/20, art. 13, comma 1) di Banca del Mezzogiorno – Medio Credito Centrale S.p.A., sul Fondo di Garanzia per le Piccole Medie Imprese, costituito ai sensi della legge n. 662/1996, il tasso di cui al presente articolo verrà ridotto e sarà pari all’1,75%. In tal caso, il Tasso Annuo Effettivo Globale (TAEG) del presente mutuo, calcolato in data odierna sarà pari al 0% annuo e per effetto degli interessi pagati da Inarcassa sarà pari al 0% per la parte finanziata sino a quando sussisteranno i requisiti previsti dall’art. 7ter.\nGli interessi di cui al presente articolo saranno calcolati in base ad un mese di 30 giorni con divisore fisso 36.000 su base annua."}]
[null,""]
[null,null,"5.  Interessi di mora\nOgni somma dovuta per qualsiasi titolo in dipendenza del presente contratto e non pagata produrrà, dal giorno della scadenza e senza bisogno di costituzione in mora, interessi moratori a carico della Parte Finanziata ed a favore della Banca. Su detti interessi non è consentita la capitalizzazione periodica. \nGli interessi di mora saranno calcolati al tasso nominale annuo pari al tasso contrattuale di cui al precedente art. 4, attualmente pari al 1,90% annuo maggiorato di 2 punti percentuali. \nGli interessi di mora saranno calcolati in base all'effettivo numero dei giorni trascorsi e con divisore fisso 36.500 su base annua.\n\n6. Rimborso anticipato\nIl rimborso anticipato del finanziamento è consentito, in tutto o in parte, alle seguenti condizioni: \na) -che la Parte Finanziata adempia ogni obbligo contrattuale su di essa gravante al momento dell’estinzione anticipata;\nb) -che il rimborso anticipato non avvenga in concomitanza con la scadenza di una rata. In caso di rimborso anticipato solo parziale, il relativo importo sarà imputato a riduzione proporzionale delle rate di successiva scadenza, ferma pertanto la durata originaria del Finanziamento. \nNell'ipotesi di estinzione anticipata totale o parziale del mutuo o di risoluzione ai sensi di legge o di contratto, non sarà dovuto alla Banca alcun compenso."]
[null,null,"7. Obblighi vari della Parte finanziata\nLa Parte finanziata si obbliga, a decorrere dall’accettazione della presente e fino alla definitiva estinzione di tutte le obbligazioni assunte con il presente contratto, a:\na) Nel caso in cui la Parte finanziata sia tenuta, per le vigenti disposizioni di legge, alla redazione e presentazione di un proprio Bilancio: inviare alla Banca i bilanci annuali corredati dalle relazioni del Consiglio di Amministrazione (e, ove esistente, del Collegio Sindacale) entro trenta giorni dalla relativa approvazione da parte dell'Assemblea, nonché l'ordine del giorno delle Assemblee ordinarie e di eventuali Assemblee straordinarie non appena convocate, con obbligo di inviare altresì il relativo verbale entro trenta giorni dall'Assemblea;\na) Nel caso in cui la Parte finanziata non sia tenuta, per le vigenti disposizioni di legge, alla redazione e presentazione di un proprio Bilancio: -inviare la documentazione relativa alla propria situazione patrimoniale, finanziaria ed economica ovvero la dichiarazione dei redditi per ogni anno successivo alla stipula del presente finanziamento e fino alla sua estinzione.\nb) fornire immediatamente alla Banca, in caso di richiesta di quest'ultima, le dichiarazioni, la documentazione ed ogni altra notizia o dato sulle proprie condizioni patrimoniali, economiche e finanziarie in conformità a quanto previsto dalle istruzioni impartite dall'Organo di Vigilanza delle Banche;\nc) comunicare immediatamente alla Banca ogni cambiamento o evento di carattere tecnico, amministrativo, giuridico o contenzioso, ancorché notorio, che possa modificare sostanzialmente in senso negativo la situazione patrimoniale, economica o finanziaria o possa comunque pregiudicare la capacità operativa; tra tali eventi si citano, in via esemplificativa e non esaustiva: l’instaurarsi di azioni esecutive, il verificarsi di circostanze che possano dar luogo al recesso di uno o più soci, il ricevimento della comunicazione di recesso da parte di uno o più soci, la deliberazione di destinazione di uno o più patrimoni ad uno o più specifici affari a norma dell’art. 2447 bis c.c.; \nd) mantenere acceso il conto corrente di cui all'art. 2 e costituirvi tempestivamente la provvista necessaria al pagamento delle rate:\ne) non abbandonare, sospendere od eseguire in modo non conforme alle previsioni consegnate alla Banca il programma finanziato ed a non impiegare, in tutto o in parte, le somme ricevute a mutuo per scopi diversi da quelli contrattualmente stabiliti. \ng) eventuali altre pattuizioni: \nLa Banca e la Parte Finanziata convengono espressamente che gli obblighi di cui al presente articolo sono considerati essenziali, l’inadempimento o l’adempimento solo parziale di anche uno solo degli stessi costituirà, nei limiti previsti dal successivo art.9, causa di risoluzione del contratto o di recesso da esso."]
[]
[null,null,"7 Bis.  Obblighi derivanti dalla garanzia prestata dal Fondo di Garanzia per le PMI (Legge 662/1996, art.2 comma 100, lett.A)\nA fronte dell’ammissione alla garanzia prestata dal Fondo di Garanzia al presente mutuo e in considerazione della natura agevolata della garanzia stessa, la Parte Finanziata si obbliga a: \na)  non mutare la finalità dell’investimento; \nb) applicare - ai sensi della legge n. 300/1970, art.36- nei confronti dei lavoratori dipendenti condizioni non inferiori a quelle risultanti dai contratti collettivi di lavoro della categoria e della zona; \nc) operare nel pieno rispetto delle vigenti norme edilizie, urbanistiche e di salvaguardia ambientale; \nd) consentire ispezioni e controlli da parte degli Enti preposti e fornire i dati e le informazioni richieste dagli stessi; \ne) in generale, ad ottemperare agli impegni assunti in sede di richiesta dell’intervento del Fondo di Garanzia le cui disposizioni dichiara di ben conoscere. \nIn particolare, la Parte Finanziata prende atto che, anche in caso di attività di controllo da parte del Fondo di Garanzia, gli investimenti dovranno essere puntualmente documentati (con fatture o altra documentazione equipollente) e che il mancato rispetto di tale obbligo potrà comportare la revoca della concessione dell’agevolazione e il pagamento a carico della Parte Finanziata delle sanzioni previste dalla legge."]
[]
[null,null,"7 Ter.  Obblighi derivanti dalla convenzione.\nIn considerazioni dei benefici derivanti dalla convenzione stipulata fra Inarcassa e la Banca, la Parte Finanziata:\na) acconsente a che la Banca possa chiedere informazioni a Inarcassa sulla regolarità della propria iscrizione e del pagamento delle relative contribuzioni nonché sulla sua eventuale cancellazione;\nb) è consapevole che qualora dovesse cancellarsi da Inarcassa nei tre anni successivi all’erogazione del finanziamento, il contributo in conto interessi a carico di quest’ultima verrà meno con effetto dal primo gennaio dell’anno successivo alla cancellazione;\nc) nel caso di cui al precedente punto b), si obbliga si d’ora a corrispondere alla Banca gli interessi relativi al presente finanziamento e non più a carico di Inarcassa, unitamente alla quota capitale;\nd) acconsente a che la Banca possa comunicare, mediante flussi anche periodici, ad Inarcassa informazioni e, tra queste, anche dati personali, inerenti il presente Finanziamento al fine di consentire ad Inarcassa di adempiere ad obblighi di legge gravanti sulla stessa così come previsti dalla normativa in materia di \"Casellario Assistenza\" (D. L. n 78/2010, convertito in Legge n. 122/2010; D. M. 8 marzo 2013; D. M. 206/2014) e dalla normativa regolamentare in materia di trasparenza, nonché al fine di consentire ad Inarcassa di adempiere agli obblighi derivanti dalla convenzione stipulata con la Banca e di agire per la tutela dei propri interessi;\ne) rispetto ai flussi informativi di cui al precedente punto d), prendete atto che, ai fini di quanto disposto dal GDPR, Inarcassa tratterà i dati personali strettamente necessari ad effettuare tali flussi nella veste di Titolare del trattamento ai sensi dell’art. 4, n. 7 del GDPR assolvendone i relativi obblighi."]
[null,null,"8.   Indilazionabilità degli obblighi della Parte Finanziata \nL'obbligo della Parte Finanziata di pagare alle date fissate tutte le somme dovute a titolo di rimborso del capitale, di pagamento degli interessi o ad altro titolo e, più in generale, l'adempimento degli obblighi di cui al presente contratto non potrà essere sospeso o ritardato neanche per il caso di contestazione, pure giudiziale, che fosse sollevata dalla Parte Finanziata, da garanti o da terzi.\n\n9.   Decadenza dal beneficio del termine, risoluzione del contratto e recesso\nA. Si conviene espressamente che costituirà causa di decadenza della Parte finanziata dal beneficio del termine, senza che occorra pronuncia giudiziale, il verificarsi di una qualsiasi delle ipotesi previste dall'art. 1186 c.c.. Costituirà altresì causa di decadenza della Parte finanziata dal beneficio del termine richiesta di ammissione a procedure concorsuali o a procedure, anche di natura stragiudiziale, aventi effetti analoghi o che comunque comportino il soddisfacimento dei debiti e delle obbligazioni in genere con modalità diverse da quelle normali, ivi inclusa la cessione dei beni ai creditori.\nB. Si conviene espressamente che abbia luogo la risoluzione del contratto, a norma dell'art. 1456 c.c., sia in caso di inadempimento dell’obbligo di pagare tutto quanto dovuto alla Banca con le modalità e nei termini previsti dagli artt. 3 e 6, sia in caso di inadempimento di anche uno solo degli obblighi di cui all'art. 7, lettere a), b), c), e), e di cui all'art.7bis,  e di cui all'art.7bis/7ter,  la risoluzione espressa potrà essere dichiarata anche qualora situazioni, dati o conti storici, presentati al fine di ottenere il finanziamento o nel corso del medesimo, risultino poi non corrispondenti al vero.\n'Altre clausole risolutive relative a eventuali altre pattuizioni di cui all’art.7 lett.g: \nC. Si conviene espressamente la facoltà della Banca di recedere dal contratto di finanziamento, a norma dell'art. 1373 c.c., al verificarsi, oltre che di qualunque causa di scioglimento dell’impresa, di uno qualsiasi dei seguenti eventi riguardanti la Parte Finanziata:\na) convocazione di assemblea per deliberare la messa in liquidazione; \nb) fusione, scissione, cessione o conferimento di azienda oppure di  ramo d’azienda non previamente autorizzate per iscritto dalla Banca; \nc) esistenza di formalità, ancorché comunicate ai sensi dell'art. 7, che, ad insindacabile giudizio della Banca, possano risultare pregiudizievoli per la situazione legale, patrimoniale, economica, finanziaria della Parte Finanziata quali, in via esemplificativa e non esaustiva, emissione di decreti ingiuntivi, provvedimenti di sequestro conservativo sui beni sociali, costituzione di patrimoni destinati ad uno specifico affare a norma dell’art. 2447 bis c.c. ecc.;"]
[null,null,"d) inadempimento di obbligazioni di natura creditizia, finanziaria, nonché di garanzia, assunte nei confronti di qualsiasi soggetto; \ne) decadenza dal beneficio del termine, risoluzione o recesso per fatto imputabile alla Parte Finanziata rispetto a qualsiasi terzo finanziatore e relativamente a qualsiasi contratto stipulato; \nf) mancato rispetto degli obblighi di cui all'art.7 lettera d) (mantenimento del conto corrente e della relativa provvista). \nLa decadenza dal beneficio del termine, la risoluzione del contratto o il recesso della Banca dal contratto stesso verranno comunicate per lettera raccomandata a.r. e avranno effetto nel momento in cui la Parte Finanziata avrà ricevuto la relativa comunicazione, ovvero questa venga restituita al mittente per compiuta giacenza. \nVerificandosi una qualunque ipotesi di decadenza dal beneficio del termine, risoluzione, recesso, previste dal presente articolo, la Parte Finanziata dovrà rimborsare tutto quanto dovuto alla Banca in dipendenza del presente contratto ivi compresi gli eventuali interessi di mora nella misura di prevista dal precedente art. 5, entro 10 (dieci) giorni lavorativi bancari dalla ricezione della relativa richiesta della Banca."]
[null,null,"10.   Spese\nPer tutta la durata del finanziamento sono a carico della Parte Finanziata le seguenti spese:\nA) istruttoria: euro zero; \nB) per eventuali volture: euro zero; \nspese per invio di comunicazioni previste per legge: euro zero per ogni invio; \nspese per invio di comunicazioni previste per legge con modalità on line: euro zero per ogni invio; \nspese per incasso e avviso di scadenza rata o quietanza di pagamento: euro zero per ogni invio;\nrilascio certificato di sussistenza credito: euro zero; \nper riesame pratica richiesta dal mutuatario: zero \nNon sono dovute in ogni caso spese per le comunicazioni esenti ai sensi di legge (attualmente art. 127 bis, comma 1 del TUB e art. 8 bis legge n. 40/2007).\nPer avere la rendicontazione on line è necessario aderire ai servizi a distanza della Banca e utilizzare le relative credenziali di accesso; i servizi a distanza sono forniti nell’ambito dei contratti denominati “Servizi via internet, cellulare e telefono per aziende ed enti” oppure “Inbiz”. \nPer maggiori informazioni sui servizi a distanza consultare il foglio informativo dedicato."]
[null,null,"11.   Vincolo successorio - accolli\nLe obbligazioni tutte assunte dalla Parte Finanziata si intendono costituite con vincolo solidale ed indivisibile anche per eventuali successori ed aventi causa a qualsiasi titolo. \nStante la specificità della garanzia, le parti convengano che l’accollo del mutuo possa avvenire solamente senza liberazione del debitore originario e previo parere favorevole del Fondo di Garanzia.  o Inarcassa.\n \n12.   Prova del credito\nGli estratti conto, le registrazioni ed in genere le risultanze contabili della Banca fanno prova del credito per capitale, interessi e quant'altro dovuto in dipendenza del presente contratto. \n \n13.   Legge applicabile e foro competente\nIl presente contratto è soggetto alla legge italiana. Per ogni e qualsiasi controversia, giudizio e procedimento che dovesse sorgere in dipendenza del presente contratto, sarà competente, il Foro stabilito dal Codice di Procedura Civile (artt.18 e sgg.)."]
[null,null,"14.   Reclami e procedure di risoluzione stragiudiziale delle controversie. \nLa Parte finanziata può presentare un reclamo alla Banca con le modalità indicate nel Foglio informativo, disponibile nelle Filiali e sul sito Internet della Banca. \nSe la Parte finanziata non è soddisfatta della risposta ricevuta o non ha ricevuto risposta entro 30 giorni dalla presentazione del reclamo, prima di ricorrere al giudice può rivolgersi all’Arbitro Bancario Finanziario (ABF); per sapere come rivolgersi all’Arbitro e l’ambito della sua competenza si può consultare il sito www.arbitrobancariofinanziario.it, chiedere presso le Filiali della Banca d’Italia, oppure chiedere alla Banca. \nAi fini della risoluzione stragiudiziale delle controversie che possano sorgere dal presente contratto, la Parte Finanziata e la Banca, nel caso di esperimento del procedimento di mediazione nei termini previsti dalla normativa vigente, possono ricorrere: \n- al Conciliatore Bancario Finanziario – Associazione per la soluzione delle controversie bancarie, finanziarie e societarie – ADR; il Regolamento del Conciliatore Bancario Finanziario può essere consultato sul sito www.conciliatorebancario.it o chiesto alla Banca; \n- oppure a un altro organismo iscritto nell’apposito registro tenuto dal Ministero della Giustizia e specializzato in materia bancaria e finanziaria.\n\n15.   Imputazione dei pagamenti \nSalva diversa determinazione della Banca, qualsiasi versamento effettuato dalla Parte Finanziata o dagli eventuali garanti sarà imputato innanzitutto al rimborso di spese ed oneri, al pagamento di accessori ed interessi e, per il rimanente, in conto capitale."]
[null,null,"16.   Elezione di domicilio \nLa Banca elegge domicilio presso la propria sede legale in Torino, Piazza San Carlo, 156 e quanto alla Parte Finanziata presso la sede o residenza dichiarata nel presente atto e, in difetto, presso la Segreteria del Comune della propria sede ai sensi dell'art. 143 c.p.c.\n \n17.   Trattamento tributario",null,null,null,null,null,null,null,null,{"$f":"CONCATENATE(\"Ai fini del trattamento tributario la Banca, con il consenso della Parte Finanziata, opta per l’applicazione all’atto dell’imposta di cui agli art. 15 e seguenti del D.P.R. 29 settembre 1973 n. 601 e successive modificazioni.\",\"\nE’ a carico della Parte Finanziata l'onere relativo al trattamento tributario del Finanziamento, di cui al citato D.P.R. n. 601/1973 in misura dello 0,25% ; in relazione alla somma erogata con il presente atto, l'imposta pagata assomma ad Euro \",ROUND(0.25%*'Dati input'!D38,2),\".\nE' a carico della Parte Finanziata qualsivoglia onere per imposte, tasse, diritti e ritenute \",\"che dovesse essere applicato in relazione al presente contratto ed ai pagamenti da eseguirsi in base allo stesso \",\"restando altresì inteso che la Banca dovrà ricevere importi, al netto di qualsivoglia onere, pari a quelli previsti.\nOgni restrizione o proibizione di legge che impedisse alla Parte Finanziata di accollarsi tali oneri\",\", obbligherà la stessa, ove richiesto per iscritto, a rimborsare l'importo capitale\",\", oltre agli interessi e ad ogni altra somma dovuta in dipendenza dal presente contratto di finanziamento, entro il termine indicato nella relativa comunicazione.\")","v":"Ai fini del trattamento tributario la Banca, con il consenso della Parte Finanziata, opta per l’applicazione all’atto dell’imposta di cui agli art. 15 e seguenti del D.P.R. 29 settembre 1973 n. 601 e successive modificazioni.\nE’ a carico della Parte Finanziata l'onere relativo al trattamento tributario del Finanziamento, di cui al citato D.P.R. n. 601/1973 in misura dello 0,25% ; in relazione alla somma erogata con il presente atto, l'imposta pagata assomma ad Euro 0.\nE' a carico della Parte Finanziata qualsivoglia onere per imposte, tasse, diritti e ritenute che dovesse essere applicato in relazione al presente contratto ed ai pagamenti da eseguirsi in base allo stesso restando altresì inteso che la Banca dovrà ricevere importi, al netto di qualsivoglia onere, pari a quelli previsti.\nOgni restrizione o proibizione di legge che impedisse alla Parte Finanziata di accollarsi tali oneri, obbligherà la stessa, ove richiesto per iscritto, a rimborsare l'importo capitale, oltre agli interessi e ad ogni altra somma dovuta in dipendenza dal presente contratto di finanziamento, entro il termine indicato nella relativa comunicazione."},"E' a carico della Parte Finanziata qualsivoglia onere per imposte, tasse, diritti e ritenute che dovesse essere applicato in relazione al presente contratto ed ai pagamenti da eseguirsi in base allo stesso restando altresì inteso che la Banca dovrà ricevere importi, al netto di qualsivoglia onere, pari a quelli previsti.\nOgni restrizione o proibizione di legge che impedisse alla Parte Finanziata di accollarsi tali oneri, obbligherà la stessa, ove richiesto per iscritto, a rimborsare l'importo capitale, oltre agli interessi e ad ogni altra somma dovuta in dipendenza dal presente contratto di finanziamento, entro il termine indicato nella relativa comunicazione.","E' a carico della Parte Finanziata qualsivoglia onere per imposte, tasse, diritti e ritenute che dovesse essere applicato in relazione al presente contratto ed ai pagamenti da eseguirsi in base allo stesso - compresa l’imposta di bollo - restando altresì inteso che la Banca dovrà ricevere importi, al netto di qualsivoglia onere, pari a quelli previsti.\nOgni restrizione o proibizione di legge che impedisse alla Parte Finanziata di accollarsi tali oneri, obbligherà la stessa, ove richiesto per iscritto, a rimborsare l'importo capitale, oltre agli interessi e ad ogni altra somma dovuta in dipendenza dal presente contratto di finanziamento, entro il termine indicato nella relativa comunicazione."]
[null,null,{"$f":"IF(AND('Dati input'!D39=\"Di altra Banca\",'Dati input'!D38<6400),Contratto!L67,IF(AND('Dati input'!D39=\"Di altra Banca\",'Dati input'!D38>=6400),Contratto!N67,Contratto!M67))","v":"E' a carico della Parte Finanziata qualsivoglia onere per imposte, tasse, diritti e ritenute che dovesse essere applicato in relazione al presente contratto ed ai pagamenti da eseguirsi in base allo stesso restando altresì inteso che la Banca dovrà ricevere importi, al netto di qualsivoglia onere, pari a quelli previsti.\nOgni restrizione o proibizione di legge che impedisse alla Parte Finanziata di accollarsi tali oneri, obbligherà la stessa, ove richiesto per iscritto, a rimborsare l'importo capitale, oltre agli interessi e ad ogni altra somma dovuta in dipendenza dal presente contratto di finanziamento, entro il termine indicato nella relativa comunicazione."}]
[null,null,"18.   Informativa sulla surrogazione nei contratti di finanziamento \nNel caso in cui la Parte finanziata, se persona fisica o micro-impresa (come definita dall’art. 1, comma 1, lettera t del D.Lgs  n. 11/2010), per rimborsare il presente finanziamento ottenga un nuovo mutuo da un’altra banca o intermediario finanziario, nei casi previsti dall’art. 120 quater del T.U.B., la Parte finanziata stessa non dovrà sostenere alcun costo (quali, a titolo di esempio: commissioni, spese, oneri o penali), neanche indirettamente. La legge prevede che il nuovo contratto così stipulato mantenga le garanzie reali e personali del precedente.\n\nCon la seguente firma il Cliente approva tutti i termini e le condizioni sopra riportate."]
[]
[]
[]
[]
[]
[null,null,"Il Cliente approva specificamente le seguenti norme, ai sensi delle vigenti disposizioni (art.1341 codice civile, testo unico bancario e relative disposizioni di attuazione):\nAi sensi e per gli effetti dell'art. 1341 c.c. e – per quanto possa occorrere – dell'art. 118 del D. Lgs. n. 385/1993, si dichiara inoltre di approvare specificamente i seguenti articoli: \n1) Clausola risolutiva \n7) Obblighi vari. \n7bis) obblighi derivanti dall'agevolazione \n7ter) obblighi derivanti dalla convenzione \n8) Indilazionabilità degli obblighi della Parte Finanziata. \n9) Decadenza dal beneficio del termine, risoluzione del contratto, recesso e capitalizzazione degli interessi a seguito della risoluzione per inadempimento. \n10) Spese. \n11)Accolli \n12) Prova del credito.\n\nLa Parte Finanziata approva infine espressamente - ai sensi del Decreto n. 343 del Comitato Interministeriale per il Credito e il Risparmio del 3/08/2016, emanato in attuazione dell'art. 17-bis della legge n. 49/2016 di conversione del \"decreto banche\" n. 18/2016, e pubblicato sulla Gazzetta Ufficiale n. 212 del 10/09/2016 e, per quanto possa occorrere, anche ai sensi dell'art. 1341 Cod. Civ. il contenuto del presente articolo – l’art. 5 (interessi di mora e loro modalità di calcolo)."]
[]
[]
[]
[]
[]
[]
[]
[null,null,"Il Cliente si impegna a conservare il modulo cartaceo sottoscritto e a consegnarlo alla Banca alla prima occasione utile, successivamente al termine dello stato di emergenza; il Cliente inoltre prende atto che l’eventuale accettazione della Banca sarà fornita su supporto durevole (file in formato PDF) e trasmessa a mezzo di posta certificata, e che alla prima occasione utile verrà consegnata una copia cartacea della stessa."]

{"sheet":"Allegato CCC","index":2,"n_rows":11,"n_cols":5,"rows_kept":11,"cut":false,"hidden":true,"merged":[[2,5,2,8],[9,2,9,3],[9,4,9,8],[10,2,10,3],[10,4,10,8],[4,2,4,8],[5,2,5,8],[6,2,6,8],[7,2,7,8],[8,2,8,8]]}
[]
[]
[]
[]
[null,null,"Informazioni sul costo complessivo del finanziamento"]
[null,null,"Al fine di favorire la trasparenza e la libertà di scelta del consumatore, accrescendone il grado di consapevolezza in merito alle caratteristiche delle diverse tipologie di servizi e prodotti offerti dalla Banca, Intesa Sanpaolo ha aderito al \"Protocollo d'Intesa\" del 30 novembre 2013 tra ABI (Associazione Bancaria Italiana), ASSOFIN (Associazione Italiana del Credito al Consumo e Immobiliare) e associazioni dei consumatori aderenti al Consiglio Nazionale dei Consumatori e degli Utenti (CNCU).\nTale protocollo ha in particolare l'obiettivo di promuovere la diffusione di buone pratiche nell'offerta ai consumatori di coperture assicurative facoltative ramo vita o miste; a tal fine, il protocollo richiede di esporre sulla documentazione precontrattuale del finanziamento oltre al TAEG - previsto ai sensi delle disposizioni della Banca d'Italia sulla trasparenza delle operazioni e dei servizi bancari e finanziari - anche un ulteriore indicatore rappresentativo dei costi connessi al credito, denominato \"Indicatore del costo totale del credito, calcolato con le stesse modalità del TAEG, includendo anche le eventuali polizze assicurative facoltative\"  ovvero un eventuale servizio accessorio facoltativo.\n\nAl finanziamento in oggetto comunque non è possibile abbinare alcuna tipologia di polizza.\n\nNel precisare inoltre che per l’erogazione del finanziamento non è obbligatoria l’apertura del conto corrente presso la banca erogante e che l’accredito del provento del finanziamento potrà avvenire su un conto corrente presso una banca non facente parte del Gruppo Intesa Sanpaolo, qualora il cliente manifesti l’esigenza di aprire un conto corrente, si rappresenta qui di seguito Il Costo Complessivo del Credito calcolato con le medesime logiche del TAEG, ma a differenza dello stesso ricomprende anche il costo del conto corrente facoltativo. Per quantificare l'incidenza del costo del conto corrente sul finanziamento, è necessario confrontare il \"Costo Complessivo del Credito” con il TAEG indicato nella proposta contrattuale."]
[]
[null,null,{"$f":"_xlfn.CONCAT(\"Gli indicatori di Costo Complessivo del Credito sono calcolati sulla base dell'anno civile (365 giorni) su un finanziamento, di €\",TEXT('Dati input'!D38,\"0.000,00\"),\" di durata di \",'Dati input'!AF39,\" mesi di cui \",'Dati input'!AF38,\" di preammortamento, al TAN fisso dell'1,90%, ricomprendendo il canone mensile del conto corrente di erogazione pari a €10,00 e la quota mensile dell'imposta di bollo pari a € 2,85.\")","v":"Gli indicatori di Costo Complessivo del Credito sono calcolati sulla base dell'anno civile (365 giorni) su un finanziamento, di €0.000,00 di durata di  mesi di cui 9 di preammortamento, al TAN fisso dell'1,90%, ricomprendendo il canone mensile del conto corrente di erogazione pari a €10,00 e la quota mensile dell'imposta di bollo pari a € 2,85."}]
[]
[null,null,"TAEG",null,"Costo Complessivo del Credito – con tutti gli accessori facoltativi"]
[null,null,{"$f":"'Dati input'!R53","v":0},null,{"$f":"'Dati input'!AG53","v":0}]

{"sheet":"PAM","index":3,"n_rows":79,"n_cols":21,"rows_kept":79,"cut":false,"hidden":true,"merged":[[0,0,0,5],[0,6,0,10]]}
["PIANO DI AMMORTAMENTO",null,null,null,null,null,"CALCOLO TAEG e TEG"]
["N. rata","Data","Rata","Capitale","Interessi","Capitale residuo","Gg per attualizzazione","Esponente attualizzazione","Flussi di cassa","Flussi di cassa attualizzati","TAEG 1,90%","Flussi di cassa","Flussi di cassa attualizzati","TAEG\n0%","Interessi 1,75%","Flussi di cassa","Flussi di cassa attualizzati","TAEG 1,75%","Flussi di cassa","Flussi di cassa attualizzati","CCC 1,90%"]
[null,null,null,null,null,null,null,null,null,{"$f":"SUM(J4:J79)","v":{"$error":"#VALUE!"}},null,null,{"$f":"SUM(M4:M79)","v":{"$error":"#VALUE!"}},null,null,null,{"$f":"SUM(Q4:Q79)","v":{"$error":"#VALUE!"}},null,null,{"$f":"SUM(T4:T79)","v":{"$error":"#VALUE!"}}]
[null,{"$f":"TODAY()","v":"2021-01-18"},null,null,null,{"$f":"'Dati input'!D38","v":0},null,null,{"$f":"-'Dati input'!D38+'Dati input'!AG48","v":0},{"$f":"I4","v":0},null,{"$f":"I4","v":0},{"$f":"L4","v":0},null,null,{"$f":"I4","v":0},{"$f":"P4","v":0},null,{"$f":"I4","v":0},{"$f":"S4","v":0}]
[1,{"$f":"IF(A5=\"\",\"\",EDATE(B4,1))","v":"2021-02-18"},{"$f":"IF(A5=\"\",\"\",D5+E5)","v":0},{"$f":"IF(A5=\"\",\"\",IF(A5<=9,0,'Dati input'!$D$53))","v":0},{"$f":"IF(A5=\"\",\"\",1.9%/12*PAM!F4)","v":0},{"$f":"IF(A5=\"\",\"\",F4-D5)","v":0},{"$f":"IF(A5=\"\",\"\",B5-$B$4)","v":31},{"$f":"IF(A5=\"\",\"\",G5/365)","v":8.4931506849315067E-2},{"$f":"IF(A5=\"\",0,C5)","v":0},{"$f":"IF(A5=\"\",0,I5/(1+$K$3)^H5)","v":0},null,{"$f":"D5","v":0},{"$f":"IF(A5=\"\",0,L5/(1+$N$3)^H5)","v":0},null,{"$f":"IF(A5=\"\",\"\",1.75%/12*PAM!F4)","v":0},{"$f":"L5+O5","v":0},{"$f":"IF(A5=\"\",0,P5/(1+$R$3)^H5)","v":0},null,{"$f":"I5+IF('Dati input'!$D$41=\"NO\",0,12.85)","v":12.85},{"$f":"IF(A5=\"\",0,S5/(1+$U$3)^H5)","v":12.85}]
[{"$f":"IF(OR(A5='Dati input'!$AF$39,PAM!A5=\"\"),\"\",PAM!A5+1)","v":2},{"$f":"IF(A6=\"\",\"\",EDATE(B5,1))","v":"2021-03-18"},{"$f":"IF(A6=\"\",\"\",D6+E6)","v":0},{"$f":"IF(A6=\"\",\"\",IF(A6<=9,0,IF(A6='Dati input'!$AF$39,'Dati input'!$D$38-SUM(PAM!$D$5:D5),'Dati input'!$D$53)))","v":0},{"$f":"IF(A6=\"\",\"\",1.9%/12*PAM!F5)","v":0},{"$f":"IF(A6=\"\",\"\",F5-D6)","v":0},{"$f":"IF(A6=\"\",\"\",B6-$B$4)","v":59},{"$f":"IF(A6=\"\",\"\",G6/365)","v":0.16164383561643836},{"$f":"IF(A6=\"\",0,C6)","v":0},{"$f":"IF(A6=\"\",0,I6/(1+$K$3)^H6)","v":0},null,{"$f":"D6","v":0},{"$f":"IF(A6=\"\",0,L6/(1+$N$3)^H6)","v":0},null,{"$f":"IF(A6=\"\",\"\",1.75%/12*PAM!F5)","v":0},{"$f":"L6+O6","v":0},{"$f":"IF(A6=\"\",0,P6/(1+$R$3)^H6)","v":0},null,{"$f":"I6+IF('Dati input'!$D$41=\"NO\",0,12.85)","v":12.85},{"$f":"IF(A6=\"\",0,S6/(1+$U$3)^H6)","v":12.85}]
[{"$f":"IF(OR(A6='Dati input'!$AF$39,PAM!A6=\"\"),\"\",PAM!A6+1)","v":3},"2021-04-18",0,{"$f":"IF(A7=\"\",\"\",IF(A7<=9,0,IF(A7='Dati input'!$AF$39,'Dati input'!$D$38-SUM(PAM!$D$5:D6),'Dati input'!$D$53)))","v":0},{"$f":"IF(A7=\"\",\"\",1.9%/12*PAM!F6)","v":0},0,90,0.24657534246575341,0,0,null,0,0,null,{"$f":"IF(A7=\"\",\"\",1.75%/12*PAM!F6)","v":0},0,0,null,{"$f":"I7+IF('Dati input'!$D$41=\"NO\",0,12.85)","v":12.85},12.85]
[{"$f":"IF(OR(A7='Dati input'!$AF$39,PAM!A7=\"\"),\"\",PAM!A7+1)","v":4},"2021-05-18",0,{"$f":"IF(A8=\"\",\"\",IF(A8<=9,0,IF(A8='Dati input'!$AF$39,'Dati input'!$D$38-SUM(PAM!$D$5:D7),'Dati input'!$D$53)))","v":0},{"$f":"IF(A8=\"\",\"\",1.9%/12*PAM!F7)","v":0},0,120,0.32876712328767121,0,0,null,0,0,null,{"$f":"IF(A8=\"\",\"\",1.75%/12*PAM!F7)","v":0},0,0,null,{"$f":"I8+IF('Dati input'!$D$41=\"NO\",0,12.85)","v":12.85},12.85]
[{"$f":"IF(OR(A8='Dati input'!$AF$39,PAM!A8=\"\"),\"\",PAM!A8+1)","v":5},"2021-06-18",0,{"$f":"IF(A9=\"\",\"\",IF(A9<=9,0,IF(A9='Dati input'!$AF$39,'Dati input'!$D$38-SUM(PAM!$D$5:D8),'Dati input'!$D$53)))","v":0},{"$f":"IF(A9=\"\",\"\",1.9%/12*PAM!F8)","v":0},0,151,0.41369863013698632,0,0,null,0,0,null,{"$f":"IF(A9=\"\",\"\",1.75%/12*PAM!F8)","v":0},0,0,null,{"$f":"I9+IF('Dati input'!$D$41=\"NO\",0,12.85)","v":12.85},12.85]
[{"$f":"IF(OR(A9='Dati input'!$AF$39,PAM!A9=\"\"),\"\",PAM!A9+1)","v":6},"2021-07-18",0,{"$f":"IF(A10=\"\",\"\",IF(A10<=9,0,IF(A10='Dati input'!$AF$39,'Dati input'!$D$38-SUM(PAM!$D$5:D9),'Dati input'!$D$53)))","v":0},{"$f":"IF(A10=\"\",\"\",1.9%/12*PAM!F9)","v":0},0,181,0.49589041095890413,0,0,null,0,0,null,{"$f":"IF(A10=\"\",\"\",1.75%/12*PAM!F9)","v":0},0,0,null,{"$f":"I10+IF('Dati input'!$D$41=\"NO\",0,12.85)","v":12.85},12.85]
[{"$f":"IF(OR(A10='Dati input'!$AF$39,PAM!A10=\"\"),\"\",PAM!A10+1)","v":7},"2021-08-18",0,{"$f":"IF(A11=\"\",\"\",IF(A11<=9,0,IF(A11='Dati input'!$AF$39,'Dati input'!$D$38-SUM(PAM!$D$5:D10),'Dati input'!$D$53)))","v":0},{"$f":"IF(A11=\"\",\"\",1.9%/12*PAM!F10)","v":0},0,212,0.58082191780821912,0,0,null,0,0,null,{"$f":"IF(A11=\"\",\"\",1.75%/12*PAM!F10)","v":0},0,0,null,{"$f":"I11+IF('Dati input'!$D$41=\"NO\",0,12.85)","v":12.85},12.85]
[{"$f":"IF(OR(A11='Dati input'!$AF$39,PAM!A11=\"\"),\"\",PAM!A11+1)","v":8},"2021-09-18",0,{"$f":"IF(A12=\"\",\"\",IF(A12<=9,0,IF(A12='Dati input'!$AF$39,'Dati input'!$D$38-SUM(PAM!$D$5:D11),'Dati input'!$D$53)))","v":0},{"$f":"IF(A12=\"\",\"\",1.9%/12*PAM!F11)","v":0},0,243,0.66575342465753429,0,0,null,0,0,null,{"$f":"IF(A12=\"\",\"\",1.75%/12*PAM!F11)","v":0},0,0,null,{"$f":"I12+IF('Dati input'!$D$41=\"NO\",0,12.85)","v":12.85},12.85]
[{"$f":"IF(OR(A12='Dati input'!$AF$39,PAM!A12=\"\"),\"\",PAM!A12+1)","v":9},"2021-10-18",0,{"$f":"IF(A13=\"\",\"\",IF(A13<=9,0,IF(A13='Dati input'!$AF$39,'Dati input'!$D$38-SUM(PAM!$D$5:D12),'Dati input'!$D$53)))","v":0},{"$f":"IF(A13=\"\",\"\",1.9%/12*PAM!F12)","v":0},0,273,0.74794520547945209,0,0,null,0,0,null,{"$f":"IF(A13=\"\",\"\",1.75%/12*PAM!F12)","v":0},0,0,null,{"$f":"I13+IF('Dati input'!$D$41=\"NO\",0,12.85)","v":12.85},12.85]
[{"$f":"IF(OR(A13='Dati input'!$AF$39,PAM!A13=\"\"),\"\",PAM!A13+1)","v":10},"2021-11-18",{"$error":"#VALUE!"},{"$f":"IF(A14=\"\",\"\",IF(A14<=9,0,IF(A14='Dati input'!$AF$39,'Dati input'!$D$38-SUM(PAM!$D$5:D13),'Dati input'!$D$53)))","v":"na"},{"$f":"IF(A14=\"\",\"\",1.9%/12*PAM!F13)","v":0},{"$error":"#VALUE!"},304,0.83287671232876714,{"$error":"#VALUE!"},{"$error":"#VALUE!"},null,"na",{"$error":"#VALUE!"},null,{"$f":"IF(A14=\"\",\"\",1.75%/12*PAM!F13)","v":0},{"$error":"#VALUE!"},{"$error":"#VALUE!"},null,{"$f":"I14+IF('Dati input'!$D$41=\"NO\",0,12.85)","v":{"$error":"#VALUE!"}},{"$error":"#VALUE!"}]
[{"$f":"IF(OR(A14='Dati input'!$AF$39,PAM!A14=\"\"),\"\",PAM!A14+1)","v":11},"2021-12-18",{"$error":"#VALUE!"},{"$f":"IF(A15=\"\",\"\",IF(A15<=9,0,IF(A15='Dati input'!$AF$39,'Dati input'!$D$38-SUM(PAM!$D$5:D14),'Dati input'!$D$53)))","v":"na"},{"$f":"IF(A15=\"\",\"\",1.9%/12*PAM!F14)","v":{"$error":"#VALUE!"}},{"$error":"#VALUE!"},334,0.91506849315068495,{"$error":"#VALUE!"},{"$error":"#VALUE!"},null,"na",{"$error":"#VALUE!"},null,{"$f":"IF(A15=\"\",\"\",1.75%/12*PAM!F14)","v":{"$error":"#VALUE!"}},{"$error":"#VALUE!"},{"$error":"#VALUE!"},null,{"$f":"I15+IF('Dati input'!$D$41=\"NO\",0,12.85)","v":{"$error":"#VALUE!"}},{"$error":"#VALUE!"}]
[{"$f":"IF(OR(A15='Dati input'!$AF$39,PAM!A15=\"\"),\"\",PAM!A15+1)","v":12},"2022-01-18",{"$error":"#VALUE!"},{"$f":"IF(A16=\"\",\"\",IF(A16<=9,0,IF(A16='Dati input'!$AF$39,'Dati input'!$D$38-SUM(PAM!$D$5:D15),'Dati input'!$D$53)))","v":"na"},{"$f":"IF(A16=\"\",\"\",1.9%/12*PAM!F15)","v":{"$error":"#VALUE!"}},{"$error":"#VALUE!"},365,1,{"$error":"#VALUE!"},{"$error":"#VALUE!"},null,"na",{"$error":"#VALUE!"},null,{"$f":"IF(A16=\"\",\"\",1.75%/12*PAM!F15)","v":{"$error":"#VALUE!"}},{"$error":"#VALUE!"},{"$error":"#VALUE!"},null,{"$f":"I16+IF('Dati input'!$D$41=\"NO\",0,12.85)","v":{"$error":"#VALUE!"}},{"$error":"#VALUE!"}]
[{"$f":"IF(OR(A16='Dati input'!$AF$39,PAM!A16=\"\"),\"\",PAM!A16+1)","v":13},"2022-02-18",{"$error":"#VALUE!"},{"$f":"IF(A17=\"\",\"\",IF(A17<=9,0,IF(A17='Dati input'!$AF$39,'Dati input'!$D$38-SUM(PAM!$D$5:D16),'Dati input'!$D$53)))","v":"na"},{"$f":"IF(A17=\"\",\"\",1.9%/12*PAM!F16)","v":{"$error":"#VALUE!"}},{"$error":"#VALUE!"},396,1.0849315068493151,{"$error":"#VALUE!"},{"$error":"#VALUE!"},null,"na",{"$error":"#VALUE!"},null,{"$f":"IF(A17=\"\",\"\",1.75%/12*PAM!F16)","v":{"$error":"#VALUE!"}},{"$error":"#VALUE!"},{"$error":"#VALUE!"},null,{"$f":"I17+IF('Dati input'!$D$41=\"NO\",0,12.85)","v":{"$error":"#VALUE!"}},{"$error":"#VALUE!"}]
[{"$f":"IF(OR(A17='Dati input'!$AF$39,PAM!A17=\"\"),\"\",PAM!A17+1)","v":14},"2022-03-18",{"$error":"#VALUE!"},{"$f":"IF(A18=\"\",\"\",IF(A18<=9,0,IF(A18='Dati input'!$AF$39,'Dati input'!$D$38-SUM(PAM!$D$5:D17),'Dati input'!$D$53)))","v":"na"},{"$f":"IF(A18=\"\",\"\",1.9%/12*PAM!F17)","v":{"$error":"#VALUE!"}},{"$error":"#VALUE!"},424,1.1616438356164382,{"$error":"#VALUE!"},{"$error":"#VALUE!"},null,"na",{"$error":"#VALUE!"},null,{"$f":"IF(A18=\"\",\"\",1.75%/12*PAM!F17)","v":{"$error":"#VALUE!"}},{"$error":"#VALUE!"},{"$error":"#VALUE!"},null,{"$f":"I18+IF('Dati input'!$D$41=\"NO\",0,12.85)","v":{"$error":"#VALUE!"}},{"$error":"#VALUE!"}]
[{"$f":"IF(OR(A18='Dati input'!$AF$39,PAM!A18=\"\"),\"\",PAM!A18+1)","v":15},"2022-04-18",{"$error":"#VALUE!"},{"$f":"IF(A19=\"\",\"\",IF(A19<=9,0,IF(A19='Dati input'!$AF$39,'Dati input'!$D$38-SUM(PAM!$D$5:D18),'Dati input'!$D$53)))","v":"na"},{"$f":"IF(A19=\"\",\"\",1.9%/12*PAM!F18)","v":{"$error":"#VALUE!"}},{"$error":"#VALUE!"},455,1.2465753424657535,{"$error":"#VALUE!"},{"$error":"#VALUE!"},null,"na",{"$error":"#VALUE!"},null,{"$f":"IF(A19=\"\",\"\",1.75%/12*PAM!F18)","v":{"$error":"#VALUE!"}},{"$error":"#VALUE!"},{"$error":"#VALUE!"},null,{"$f":"I19+IF('Dati input'!$D$41=\"NO\",0,12.85)","v":{"$error":"#VALUE!"}},{"$error":"#VALUE!"}]
[{"$f":"IF(OR(A19='Dati input'!$AF$39,PAM!A19=\"\"),\"\",PAM!A19+1)","v":16},"2022-05-18",{"$error":"#VALUE!"},{"$f":"IF(A20=\"\",\"\",IF(A20<=9,0,IF(A20='Dati input'!$AF$39,'Dati input'!$D$38-SUM(PAM!$D$5:D19),'Dati input'!$D$53)))","v":"na"},{"$f":"IF(A20=\"\",\"\",1.9%/12*PAM!F19)","v":{"$error":"#VALUE!"}},{"$error":"#VALUE!"},485,1.3287671232876712,{"$error":"#VALUE!"},{"$error":"#VALUE!"},null,"na",{"$error":"#VALUE!"},null,{"$f":"IF(A20=\"\",\"\",1.75%/12*PAM!F19)","v":{"$error":"#VALUE!"}},{"$error":"#VALUE!"},{"$error":"#VALUE!"},null,{"$f":"I20+IF('Dati input'!$D$41=\"NO\",0,12.85)","v":{"$error":"#VALUE!"}},{"$error":"#VALUE!"}]
[{"$f":"IF(OR(A20='Dati input'!$AF$39,PAM!A20=\"\"),\"\",PAM!A20+1)","v":17},"2022-06-18",{"$error":"#VALUE!"},{"$f":"IF(A21=\"\",\"\",IF(A21<=9,0,IF(A21='Dati input'!$AF$39,'Dati input'!$D$38-SUM(PAM!$D$5:D20),'Dati input'!$D$53)))","v":"na"},{"$f":"IF(A21=\"\",\"\",1.9%/12*PAM!F20)","v":{"$error":"#VALUE!"}},{"$error":"#VALUE!"},516,1.4136986301369863,{"$error":"#VALUE!"},{"$error":"#VALUE!"},null,"na",{"$error":"#VALUE!"},null,{"$f":"IF(A21=\"\",\"\",1.75%/12*PAM!F20)","v":{"$error":"#VALUE!"}},{"$error":"#VALUE!"},{"$error":"#VALUE!"},null,{"$f":"I21+IF('Dati input'!$D$41=\"NO\",0,12.85)","v":{"$error":"#VALUE!"}},{"$error":"#VALUE!"}]
[{"$f":"IF(OR(A21='Dati input'!$AF$39,PAM!A21=\"\"),\"\",PAM!A21+1)","v":18},"2022-07-18",{"$error":"#VALUE!"},{"$f":"IF(A22=\"\",\"\",IF(A22<=9,0,IF(A22='Dati input'!$AF$39,'Dati input'!$D$38-SUM(PAM!$D$5:D21),'Dati input'!$D$53)))","v":"na"},{"$f":"IF(A22=\"\",\"\",1.9%/12*PAM!F21)","v":{"$error":"#VALUE!"}},{"$error":"#VALUE!"},546,1.4958904109589042,{"$error":"#VALUE!"},{"$error":"#VALUE!"},null,"na",{"$error":"#VALUE!"},null,{"$f":"IF(A22=\"\",\"\",1.75%/12*PAM!F21)","v":{"$error":"#VALUE!"}},{"$error":"#VALUE!"},{"$error":"#VALUE!"},null,{"$f":"I22+IF('Dati input'!$D$41=\"NO\",0,12.85)","v":{"$error":"#VALUE!"}},{"$error":"#VALUE!"}]
[{"$f":"IF(OR(A22='Dati input'!$AF$39,PAM!A22=\"\"),\"\",PAM!A22+1)","v":19},"2022-08-18",{"$error":"#VALUE!"},{"$f":"IF(A23=\"\",\"\",IF(A23<=9,0,IF(A23='Dati input'!$AF$39,'Dati input'!$D$38-SUM(PAM!$D$5:D22),'Dati input'!$D$53)))","v":"na"},{"$f":"IF(A23=\"\",\"\",1.9%/12*PAM!F22)","v":{"$error":"#VALUE!"}},{"$error":"#VALUE!"},577,1.5808219178082192,{"$error":"#VALUE!"},{"$error":"#VALUE!"},null,"na",{"$error":"#VALUE!"},null,{"$f":"IF(A23=\"\",\"\",1.75%/12*PAM!F22)","v":{"$error":"#VALUE!"}},{"$error":"#VALUE!"},{"$error":"#VALUE!"},null,{"$f":"I23+IF('Dati input'!$D$41=\"NO\",0,12.85)","v":{"$error":"#VALUE!"}},{"$error":"#VALUE!"}]
[{"$f":"IF(OR(A23='Dati input'!$AF$39,PAM!A23=\"\"),\"\",PAM!A23+1)","v":20},"2022-09-18",{"$error":"#VALUE!"},{"$f":"IF(A24=\"\",\"\",IF(A24<=9,0,IF(A24='Dati input'!$AF$39,'Dati input'!$D$38-SUM(PAM!$D$5:D23),'Dati input'!$D$53)))","v":"na"},{"$f":"IF(A24=\"\",\"\",1.9%/12*PAM!F23)","v":{"$error":"#VALUE!"}},{"$error":"#VALUE!"},608,1.6657534246575343,{"$error":"#VALUE!"},{"$error":"#VALUE!"},null,"na",{"$error":"#VALUE!"},null,{"$f":"IF(A24=\"\",\"\",1.75%/12*PAM!F23)","v":{"$error":"#VALUE!"}},{"$error":"#VALUE!"},{"$error":"#VALUE!"},null,{"$f":"I24+IF('Dati input'!$D$41=\"NO\",0,12.85)","v":{"$error":"#VALUE!"}},{"$error":"#VALUE!"}]
[{"$f":"IF(OR(A24='Dati input'!$AF$39,PAM!A24=\"\"),\"\",PAM!A24+1)","v":21},"2022-10-18",{"$error":"#VALUE!"},{"$f":"IF(A25=\"\",\"\",IF(A25<=9,0,IF(A25='Dati input'!$AF$39,'Dati input'!$D$38-SUM(PAM!$D$5:D24),'Dati input'!$D$53)))","v":"na"},{"$f":"IF(A25=\"\",\"\",1.9%/12*PAM!F24)","v":{"$error":"#VALUE!"}},{"$error":"#VALUE!"},638,1.747945205479452,{"$error":"#VALUE!"},{"$error":"#VALUE!"},null,"na",{"$error":"#VALUE!"},null,{"$f":"IF(A25=\"\",\"\",1.75%/12*PAM!F24)","v":{"$error":"#VALUE!"}},{"$error":"#VALUE!"},{"$error":"#VALUE!"},null,{"$f":"I25+IF('Dati input'!$D$41=\"NO\",0,12.85)","v":{"$error":"#VALUE!"}},{"$error":"#VALUE!"}]
[{"$f":"IF(OR(A25='Dati input'!$AF$39,PAM!A25=\"\"),\"\",PAM!A25+1)","v":22},"2022-11-18",{"$error":"#VALUE!"},{"$f":"IF(A26=\"\",\"\",IF(A26<=9,0,IF(A26='Dati input'!$AF$39,'Dati input'!$D$38-SUM(PAM!$D$5:D25),'Dati input'!$D$53)))","v":"na"},{"$f":"IF(A26=\"\",\"\",1.9%/12*PAM!F25)","v":{"$error":"#VALUE!"}},{"$error":"#VALUE!"},669,1.832876712328767,{"$error":"#VALUE!"},{"$error":"#VALUE!"},null,"na",{"$error":"#VALUE!"},null,{"$f":"IF(A26=\"\",\"\",1.75%/12*PAM!F25)","v":{"$error":"#VALUE!"}},{"$error":"#VALUE!"},{"$error":"#VALUE!"},null,{"$f":"I26+IF('Dati input'!$D$41=\"NO\",0,12.85)","v":{"$error":"#VALUE!"}},{"$error":"#VALUE!"}]
[{"$f":"IF(OR(A26='Dati input'!$AF$39,PAM!A26=\"\"),\"\",PAM!A26+1)","v":23},"2022-12-18",{"$error":"#VALUE!"},{"$f":"IF(A27=\"\",\"\",IF(A27<=9,0,IF(A27='Dati input'!$AF$39,'Dati input'!$D$38-SUM(PAM!$D$5:D26),'Dati input'!$D$53)))","v":"na"},{"$f":"IF(A27=\"\",\"\",1.9%/12*PAM!F26)","v":{"$error":"#VALUE!"}},{"$error":"#VALUE!"},699,1.9150684931506849,{"$error":"#VALUE!"},{"$error":"#VALUE!"},null,"na",{"$error":"#VALUE!"},null,{"$f":"IF(A27=\"\",\"\",1.75%/12*PAM!F26)","v":{"$error":"#VALUE!"}},{"$error":"#VALUE!"},{"$error":"#VALUE!"},null,{"$f":"I27+IF('Dati input'!$D$41=\"NO\",0,12.85)","v":{"$error":"#VALUE!"}},{"$error":"#VALUE!"}]
[{"$f":"IF(OR(A27='Dati input'!$AF$39,PAM!A27=\"\"),\"\",PAM!A27+1)","v":24},"2023-01-18",{"$error":"#VALUE!"},{"$f":"IF(A28=\"\",\"\",IF(A28<=9,0,IF(A28='Dati input'!$AF$39,'Dati input'!$D$38-SUM(PAM!$D$5:D27),'Dati input'!$D$53)))","v":"na"},{"$f":"IF(A28=\"\",\"\",1.9%/12*PAM!F27)","v":{"$error":"#VALUE!"}},{"$error":"#VALUE!"},730,2,{"$error":"#VALUE!"},{"$error":"#VALUE!"},null,"na",{"$error":"#VALUE!"},null,{"$f":"IF(A28=\"\",\"\",1.75%/12*PAM!F27)","v":{"$error":"#VALUE!"}},{"$error":"#VALUE!"},{"$error":"#VALUE!"},null,{"$f":"I28+IF('Dati input'!$D$41=\"NO\",0,12.85)","v":{"$error":"#VALUE!"}},{"$error":"#VALUE!"}]
[{"$f":"IF(OR(A28='Dati input'!$AF$39,PAM!A28=\"\"),\"\",PAM!A28+1)","v":25},"2023-02-18",{"$error":"#VALUE!"},{"$f":"IF(A29=\"\",\"\",IF(A29<=9,0,IF(A29='Dati input'!$AF$39,'Dati input'!$D$38-SUM(PAM!$D$5:D28),'Dati input'!$D$53)))","v":"na"},{"$f":"IF(A29=\"\",\"\",1.9%/12*PAM!F28)","v":{"$error":"#VALUE!"}},{"$error":"#VALUE!"},761,2.0849315068493151,{"$error":"#VALUE!"},{"$error":"#VALUE!"},null,"na",{"$error":"#VALUE!"},null,{"$f":"IF(A29=\"\",\"\",1.75%/12*PAM!F28)","v":{"$error":"#VALUE!"}},{"$error":"#VALUE!"},{"$error":"#VALUE!"},null,{"$f":"I29+IF('Dati input'!$D$41=\"NO\",0,12.85)","v":{"$error":"#VALUE!"}},{"$error":"#VALUE!"}]
[{"$f":"IF(OR(A29='Dati input'!$AF$39,PAM!A29=\"\"),\"\",PAM!A29+1)","v":26},"2023-03-18",{"$error":"#VALUE!"},{"$f":"IF(A30=\"\",\"\",IF(A30<=9,0,IF(A30='Dati input'!$AF$39,'Dati input'!$D$38-SUM(PAM!$D$5:D29),'Dati input'!$D$53)))","v":"na"},{"$f":"IF(A30=\"\",\"\",1.9%/12*PAM!F29)","v":{"$error":"#VALUE!"}},{"$error":"#VALUE!"},789,2.1616438356164385,{"$error":"#VALUE!"},{"$error":"#VALUE!"},null,"na",{"$error":"#VALUE!"},null,{"$f":"IF(A30=\"\",\"\",1.75%/12*PAM!F29)","v":{"$error":"#VALUE!"}},{"$error":"#VALUE!"},{"$error":"#VALUE!"},null,{"$f":"I30+IF('Dati input'!$D$41=\"NO\",0,12.85)","v":{"$error":"#VALUE!"}},{"$error":"#VALUE!"}]
[{"$f":"IF(OR(A30='Dati input'!$AF$39,PAM!A30=\"\"),\"\",PAM!A30+1)","v":27},"2023-04-18",{"$error":"#VALUE!"},{"$f":"IF(A31=\"\",\"\",IF(A31<=9,0,IF(A31='Dati input'!$AF$39,'Dati input'!$D$38-SUM(PAM!$D$5:D30),'Dati input'!$D$53)))","v":"na"},{"$f":"IF(A31=\"\",\"\",1.9%/12*PAM!F30)","v":{"$error":"#VALUE!"}},{"$error":"#VALUE!"},820,2.2465753424657535,{"$error":"#VALUE!"},{"$error":"#VALUE!"},null,"na",{"$error":"#VALUE!"},null,{"$f":"IF(A31=\"\",\"\",1.75%/12*PAM!F30)","v":{"$error":"#VALUE!"}},{"$error":"#VALUE!"},{"$error":"#VALUE!"},null,{"$f":"I31+IF('Dati input'!$D$41=\"NO\",0,12.85)","v":{"$error":"#VALUE!"}},{"$error":"#VALUE!"}]
[{"$f":"IF(OR(A31='Dati input'!$AF$39,PAM!A31=\"\"),\"\",PAM!A31+1)","v":28},"2023-05-18",{"$error":"#VALUE!"},{"$f":"IF(A32=\"\",\"\",IF(A32<=9,0,IF(A32='Dati input'!$AF$39,'Dati input'!$D$38-SUM(PAM!$D$5:D31),'Dati input'!$D$53)))","v":"na"},{"$f":"IF(A32=\"\",\"\",1.9%/12*PAM!F31)","v":{"$error":"#VALUE!"}},{"$error":"#VALUE!"},850,2.3287671232876712,{"$error":"#VALUE!"},{"$error":"#VALUE!"},null,"na",{"$error":"#VALUE!"},null,{"$f":"IF(A32=\"\",\"\",1.75%/12*PAM!F31)","v":{"$error":"#VALUE!"}},{"$error":"#VALUE!"},{"$error":"#VALUE!"},null,{"$f":"I32+IF('Dati input'!$D$41=\"NO\",0,12.85)","v":{"$error":"#VALUE!"}},{"$error":"#VALUE!"}]
[{"$f":"IF(OR(A32='Dati input'!$AF$39,PAM!A32=\"\"),\"\",PAM!A32+1)","v":29},"2023-06-18",{"$error":"#VALUE!"},{"$f":"IF(A33=\"\",\"\",IF(A33<=9,0,IF(A33='Dati input'!$AF$39,'Dati input'!$D$38-SUM(PAM!$D$5:D32),'Dati input'!$D$53)))","v":"na"},{"$f":"IF(A33=\"\",\"\",1.9%/12*PAM!F32)","v":{"$error":"#VALUE!"}},{"$error":"#VALUE!"},881,2.4136986301369863,{"$error":"#VALUE!"},{"$error":"#VALUE!"},null,"na",{"$error":"#VALUE!"},null,{"$f":"IF(A33=\"\",\"\",1.75%/12*PAM!F32)","v":{"$error":"#VALUE!"}},{"$error":"#VALUE!"},{"$error":"#VALUE!"},null,{"$f":"I33+IF('Dati input'!$D$41=\"NO\",0,12.85)","v":{"$error":"#VALUE!"}},{"$error":"#VALUE!"}]
[{"$f":"IF(OR(A33='Dati input'!$AF$39,PAM!A33=\"\"),\"\",PAM!A33+1)","v":30},"2023-07-18",{"$error":"#VALUE!"},{"$f":"IF(A34=\"\",\"\",IF(A34<=9,0,IF(A34='Dati input'!$AF$39,'Dati input'!$D$38-SUM(PAM!$D$5:D33),'Dati input'!$D$53)))","v":"na"},{"$f":"IF(A34=\"\",\"\",1.9%/12*PAM!F33)","v":{"$error":"#VALUE!"}},{"$error":"#VALUE!"},911,2.495890410958904,{"$error":"#VALUE!"},{"$error":"#VALUE!"},null,"na",{"$error":"#VALUE!"},null,{"$f":"IF(A34=\"\",\"\",1.75%/12*PAM!F33)","v":{"$error":"#VALUE!"}},{"$error":"#VALUE!"},{"$error":"#VALUE!"},null,{"$f":"I34+IF('Dati input'!$D$41=\"NO\",0,12.85)","v":{"$error":"#VALUE!"}},{"$error":"#VALUE!"}]
[{"$f":"IF(OR(A34='Dati input'!$AF$39,PAM!A34=\"\"),\"\",PAM!A34+1)","v":31},"2023-08-18",{"$error":"#VALUE!"},{"$f":"IF(A35=\"\",\"\",IF(A35<=9,0,IF(A35='Dati input'!$AF$39,'Dati input'!$D$38-SUM(PAM!$D$5:D34),'Dati input'!$D$53)))","v":"na"},{"$f":"IF(A35=\"\",\"\",1.9%/12*PAM!F34)","v":{"$error":"#VALUE!"}},{"$error":"#VALUE!"},942,2.580821917808219,{"$error":"#VALUE!"},{"$error":"#VALUE!"},null,"na",{"$error":"#VALUE!"},null,{"$f":"IF(A35=\"\",\"\",1.75%/12*PAM!F34)","v":{"$error":"#VALUE!"}},{"$error":"#VALUE!"},{"$error":"#VALUE!"},null,{"$f":"I35+IF('Dati input'!$D$41=\"NO\",0,12.85)","v":{"$error":"#VALUE!"}},{"$error":"#VALUE!"}]
[{"$f":"IF(OR(A35='Dati input'!$AF$39,PAM!A35=\"\"),\"\",PAM!A35+1)","v":32},"2023-09-18",{"$error":"#VALUE!"},{"$f":"IF(A36=\"\",\"\",IF(A36<=9,0,IF(A36='Dati input'!$AF$39,'Dati input'!$D$38-SUM(PAM!$D$5:D35),'Dati input'!$D$53)))","v":"na"},{"$f":"IF(A36=\"\",\"\",1.9%/12*PAM!F35)","v":{"$error":"#VALUE!"}},{"$error":"#VALUE!"},973,2.6657534246575341,{"$error":"#VALUE!"},{"$error":"#VALUE!"},null,"na",{"$error":"#VALUE!"},null,{"$f":"IF(A36=\"\",\"\",1.75%/12*PAM!F35)","v":{"$error":"#VALUE!"}},{"$error":"#VALUE!"},{"$error":"#VALUE!"},null,{"$f":"I36+IF('Dati input'!$D$41=\"NO\",0,12.85)","v":{"$error":"#VALUE!"}},{"$error":"#VALUE!"}]
[{"$f":"IF(OR(A36='Dati input'!$AF$39,PAM!A36=\"\"),\"\",PAM!A36+1)","v":33},"2023-10-18",{"$error":"#VALUE!"},{"$f":"IF(A37=\"\",\"\",IF(A37<=9,0,IF(A37='Dati input'!$AF$39,'Dati input'!$D$38-SUM(PAM!$D$5:D36),'Dati input'!$D$53)))","v":"na"},{"$f":"IF(A37=\"\",\"\",1.9%/12*PAM!F36)","v":{"$error":"#VALUE!"}},{"$error":"#VALUE!"},1003,2.7479452054794522,{"$error":"#VALUE!"},{"$error":"#VALUE!"},null,"na",{"$error":"#VALUE!"},null,{"$f":"IF(A37=\"\",\"\",1.75%/12*PAM!F36)","v":{"$error":"#VALUE!"}},{"$error":"#VALUE!"},{"$error":"#VALUE!"},null,{"$f":"I37+IF('Dati input'!$D$41=\"NO\",0,12.85)","v":{"$error":"#VALUE!"}},{"$error":"#VALUE!"}]
[{"$f":"IF(OR(A37='Dati input'!$AF$39,PAM!A37=\"\"),\"\",PAM!A37+1)","v":34},"2023-11-18",{"$error":"#VALUE!"},{"$f":"IF(A38=\"\",\"\",IF(A38<=9,0,IF(A38='Dati input'!$AF$39,'Dati input'!$D$38-SUM(PAM!$D$5:D37),'Dati input'!$D$53)))","v":"na"},{"$f":"IF(A38=\"\",\"\",1.9%/12*PAM!F37)","v":{"$error":"#VALUE!"}},{"$error":"#VALUE!"},1034,2.8328767123287673,{"$error":"#VALUE!"},{"$error":"#VALUE!"},null,"na",{"$error":"#VALUE!"},null,{"$f":"IF(A38=\"\",\"\",1.75%/12*PAM!F37)","v":{"$error":"#VALUE!"}},{"$error":"#VALUE!"},{"$error":"#VALUE!"},null,{"$f":"I38+IF('Dati input'!$D$41=\"NO\",0,12.85)","v":{"$error":"#VALUE!"}},{"$error":"#VALUE!"}]
[{"$f":"IF(OR(A38='Dati input'!$AF$39,PAM!A38=\"\"),\"\",PAM!A38+1)","v":35},"2023-12-18",{"$error":"#VALUE!"},{"$f":"IF(A39=\"\",\"\",IF(A39<=9,0,IF(A39='Dati input'!$AF$39,'Dati input'!$D$38-SUM(PAM!$D$5:D38),'Dati input'!$D$53)))","v":"na"},{"$f":"IF(A39=\"\",\"\",1.9%/12*PAM!F38)","v":{"$error":"#VALUE!"}},{"$error":"#VALUE!"},1064,2.9150684931506849,{"$error":"#VALUE!"},{"$error":"#VALUE!"},null,"na",{"$error":"#VALUE!"},null,{"$f":"IF(A39=\"\",\"\",1.75%/12*PAM!F38)","v":{"$error":"#VALUE!"}},{"$error":"#VALUE!"},{"$error":"#VALUE!"},null,{"$f":"I39+IF('Dati input'!$D$41=\"NO\",0,12.85)","v":{"$error":"#VALUE!"}},{"$error":"#VALUE!"}]
[{"$f":"IF(OR(A39='Dati input'!$AF$39,PAM!A39=\"\"),\"\",PAM!A39+1)","v":36},"2024-01-18",{"$error":"#VALUE!"},{"$f":"IF(A40=\"\",\"\",IF(A40<=9,0,IF(A40='Dati input'!$AF$39,'Dati input'!$D$38-SUM(PAM!$D$5:D39),'Dati input'!$D$53)))","v":"na"},{"$f":"IF(A40=\"\",\"\",1.9%/12*PAM!F39)","v":{"$error":"#VALUE!"}},{"$error":"#VALUE!"},1095,3,{"$error":"#VALUE!"},{"$error":"#VALUE!"},null,"na",{"$error":"#VALUE!"},null,{"$f":"IF(A40=\"\",\"\",1.75%/12*PAM!F39)","v":{"$error":"#VALUE!"}},{"$error":"#VALUE!"},{"$error":"#VALUE!"},null,{"$f":"I40+IF('Dati input'!$D$41=\"NO\",0,12.85)","v":{"$error":"#VALUE!"}},{"$error":"#VALUE!"}]
[{"$f":"IF(OR(A40='Dati input'!$AF$39,PAM!A40=\"\"),\"\",PAM!A40+1)","v":37},"2024-02-18",{"$error":"#VALUE!"},{"$f":"IF(A41=\"\",\"\",IF(A41<=9,0,IF(A41='Dati input'!$AF$39,'Dati input'!$D$38-SUM(PAM!$D$5:D40),'Dati input'!$D$53)))","v":"na"},{"$f":"IF(A41=\"\",\"\",1.9%/12*PAM!F40)","v":{"$error":"#VALUE!"}},{"$error":"#VALUE!"},1126,3.0849315068493151,{"$error":"#VALUE!"},{"$error":"#VALUE!"},null,"na",{"$error":"#VALUE!"},null,{"$f":"IF(A41=\"\",\"\",1.75%/12*PAM!F40)","v":{"$error":"#VALUE!"}},{"$error":"#VALUE!"},{"$error":"#VALUE!"},null,{"$f":"I41+IF('Dati input'!$D$41=\"NO\",0,12.85)","v":{"$error":"#VALUE!"}},{"$error":"#VALUE!"}]
[{"$f":"IF(OR(A41='Dati input'!$AF$39,PAM!A41=\"\"),\"\",PAM!A41+1)","v":38},"2024-03-18",{"$error":"#VALUE!"},{"$f":"IF(A42=\"\",\"\",IF(A42<=9,0,IF(A42='Dati input'!$AF$39,'Dati input'!$D$38-SUM(PAM!$D$5:D41),'Dati input'!$D$53)))","v":"na"},{"$f":"IF(A42=\"\",\"\",1.9%/12*PAM!F41)","v":{"$error":"#VALUE!"}},{"$error":"#VALUE!"},1155,3.1643835616438358,{"$error":"#VALUE!"},{"$error":"#VALUE!"},null,"na",{"$error":"#VALUE!"},null,{"$f":"IF(A42=\"\",\"\",1.75%/12*PAM!F41)","v":{"$error":"#VALUE!"}},{"$error":"#VALUE!"},{"$error":"#VALUE!"},null,{"$f":"I42+IF('Dati input'!$D$41=\"NO\",0,12.85)","v":{"$error":"#VALUE!"}},{"$error":"#VALUE!"}]
[{"$f":"IF(OR(A42='Dati input'!$AF$39,PAM!A42=\"\"),\"\",PAM!A42+1)","v":39},"2024-04-18",{"$error":"#VALUE!"},{"$f":"IF(A43=\"\",\"\",IF(A43<=9,0,IF(A43='Dati input'!$AF$39,'Dati input'!$D$38-SUM(PAM!$D$5:D42),'Dati input'!$D$53)))","v":"na"},{"$f":"IF(A43=\"\",\"\",1.9%/12*PAM!F42)","v":{"$error":"#VALUE!"}},{"$error":"#VALUE!"},1186,3.2493150684931509,{"$error":"#VALUE!"},{"$error":"#VALUE!"},null,"na",{"$error":"#VALUE!"},null,{"$f":"IF(A43=\"\",\"\",1.75%/12*PAM!F42)","v":{"$error":"#VALUE!"}},{"$error":"#VALUE!"},{"$error":"#VALUE!"},null,{"$f":"I43+IF('Dati input'!$D$41=\"NO\",0,12.85)","v":{"$error":"#VALUE!"}},{"$error":"#VALUE!"}]
[{"$f":"IF(OR(A43='Dati input'!$AF$39,PAM!A43=\"\"),\"\",PAM!A43+1)","v":40},"2024-05-18",{"$error":"#VALUE!"},{"$f":"IF(A44=\"\",\"\",IF(A44<=9,0,IF(A44='Dati input'!$AF$39,'Dati input'!$D$38-SUM(PAM!$D$5:D43),'Dati input'!$D$53)))","v":"na"},{"$f":"IF(A44=\"\",\"\",1.9%/12*PAM!F43)","v":{"$error":"#VALUE!"}},{"$error":"#VALUE!"},1216,3.3315068493150686,{"$error":"#VALUE!"},{"$error":"#VALUE!"},null,"na",{"$error":"#VALUE!"},null,{"$f":"IF(A44=\"\",\"\",1.75%/12*PAM!F43)","v":{"$error":"#VALUE!"}},{"$error":"#VALUE!"},{"$error":"#VALUE!"},null,{"$f":"I44+IF('Dati input'!$D$41=\"NO\",0,12.85)","v":{"$error":"#VALUE!"}},{"$error":"#VALUE!"}]
[{"$f":"IF(OR(A44='Dati input'!$AF$39,PAM!A44=\"\"),\"\",PAM!A44+1)","v":41},"2024-06-18",{"$error":"#VALUE!"},{"$f":"IF(A45=\"\",\"\",IF(A45<=9,0,IF(A45='Dati input'!$AF$39,'Dati input'!$D$38-SUM(PAM!$D$5:D44),'Dati input'!$D$53)))","v":"na"},{"$f":"IF(A45=\"\",\"\",1.9%/12*PAM!F44)","v":{"$error":"#VALUE!"}},{"$error":"#VALUE!"},1247,3.4164383561643836,{"$error":"#VALUE!"},{"$error":"#VALUE!"},null,"na",{"$error":"#VALUE!"},null,{"$f":"IF(A45=\"\",\"\",1.75%/12*PAM!F44)","v":{"$error":"#VALUE!"}},{"$error":"#VALUE!"},{"$error":"#VALUE!"},null,{"$f":"I45+IF('Dati input'!$D$41=\"NO\",0,12.85)","v":{"$error":"#VALUE!"}},{"$error":"#VALUE!"}]
[{"$f":"IF(OR(A45='Dati input'!$AF$39,PAM!A45=\"\"),\"\",PAM!A45+1)","v":42},"2024-07-18",{"$error":"#VALUE!"},{"$f":"IF(A46=\"\",\"\",IF(A46<=9,0,IF(A46='Dati input'!$AF$39,'Dati input'!$D$38-SUM(PAM!$D$5:D45),'Dati input'!$D$53)))","v":"na"},{"$f":"IF(A46=\"\",\"\",1.9%/12*PAM!F45)","v":{"$error":"#VALUE!"}},{"$error":"#VALUE!"},1277,3.4986301369863013,{"$error":"#VALUE!"},{"$error":"#VALUE!"},null,"na",{"$error":"#VALUE!"},null,{"$f":"IF(A46=\"\",\"\",1.75%/12*PAM!F45)","v":{"$error":"#VALUE!"}},{"$error":"#VALUE!"},{"$error":"#VALUE!"},null,{"$f":"I46+IF('Dati input'!$D$41=\"NO\",0,12.85)","v":{"$error":"#VALUE!"}},{"$error":"#VALUE!"}]
[{"$f":"IF(OR(A46='Dati input'!$AF$39,PAM!A46=\"\"),\"\",PAM!A46+1)","v":43},"2024-08-18",{"$error":"#VALUE!"},{"$f":"IF(A47=\"\",\"\",IF(A47<=9,0,IF(A47='Dati input'!$AF$39,'Dati input'!$D$38-SUM(PAM!$D$5:D46),'Dati input'!$D$53)))","v":"na"},{"$f":"IF(A47=\"\",\"\",1.9%/12*PAM!F46)","v":{"$error":"#VALUE!"}},{"$error":"#VALUE!"},1308,3.5835616438356164,{"$error":"#VALUE!"},{"$error":"#VALUE!"},null,"na",{"$error":"#VALUE!"},null,{"$f":"IF(A47=\"\",\"\",1.75%/12*PAM!F46)","v":{"$error":"#VALUE!"}},{"$error":"#VALUE!"},{"$error":"#VALUE!"},null,{"$f":"I47+IF('Dati input'!$D$41=\"NO\",0,12.85)","v":{"$error":"#VALUE!"}},{"$error":"#VALUE!"}]
[{"$f":"IF(OR(A47='Dati input'!$AF$39,PAM!A47=\"\"),\"\",PAM!A47+1)","v":44},"2024-09-18",{"$error":"#VALUE!"},{"$f":"IF(A48=\"\",\"\",IF(A48<=9,0,IF(A48='Dati input'!$AF$39,'Dati input'!$D$38-SUM(PAM!$D$5:D47),'Dati input'!$D$53)))","v":"na"},{"$f":"IF(A48=\"\",\"\",1.9%/12*PAM!F47)","v":{"$error":"#VALUE!"}},{"$error":"#VALUE!"},1339,3.6684931506849314,{"$error":"#VALUE!"},{"$error":"#VALUE!"},null,"na",{"$error":"#VALUE!"},null,{"$f":"IF(A48=\"\",\"\",1.75%/12*PAM!F47)","v":{"$error":"#VALUE!"}},{"$error":"#VALUE!"},{"$error":"#VALUE!"},null,{"$f":"I48+IF('Dati input'!$D$41=\"NO\",0,12.85)","v":{"$error":"#VALUE!"}},{"$error":"#VALUE!"}]
[{"$f":"IF(OR(A48='Dati input'!$AF$39,PAM!A48=\"\"),\"\",PAM!A48+1)","v":45},"2024-10-18",{"$error":"#VALUE!"},{"$f":"IF(A49=\"\",\"\",IF(A49<=9,0,IF(A49='Dati input'!$AF$39,'Dati input'!$D$38-SUM(PAM!$D$5:D48),'Dati input'!$D$53)))","v":"na"},{"$f":"IF(A49=\"\",\"\",1.9%/12*PAM!F48)","v":{"$error":"#VALUE!"}},{"$error":"#VALUE!"},1369,3.7506849315068491,{"$error":"#VALUE!"},{"$error":"#VALUE!"},null,"na",{"$error":"#VALUE!"},null,{"$f":"IF(A49=\"\",\"\",1.75%/12*PAM!F48)","v":{"$error":"#VALUE!"}},{"$error":"#VALUE!"},{"$error":"#VALUE!"},null,{"$f":"I49+IF('Dati input'!$D$41=\"NO\",0,12.85)","v":{"$error":"#VALUE!"}},{"$error":"#VALUE!"}]
[{"$f":"IF(OR(A49='Dati input'!$AF$39,PAM!A49=\"\"),\"\",PAM!A49+1)","v":46},"2024-11-18",{"$error":"#VALUE!"},{"$f":"IF(A50=\"\",\"\",IF(A50<=9,0,IF(A50='Dati input'!$AF$39,'Dati input'!$D$38-SUM(PAM!$D$5:D49),'Dati input'!$D$53)))","v":"na"},{"$f":"IF(A50=\"\",\"\",1.9%/12*PAM!F49)","v":{"$error":"#VALUE!"}},{"$error":"#VALUE!"},1400,3.8356164383561642,{"$error":"#VALUE!"},{"$error":"#VALUE!"},null,"na",{"$error":"#VALUE!"},null,{"$f":"IF(A50=\"\",\"\",1.75%/12*PAM!F49)","v":{"$error":"#VALUE!"}},{"$error":"#VALUE!"},{"$error":"#VALUE!"},null,{"$f":"I50+IF('Dati input'!$D$41=\"NO\",0,12.85)","v":{"$error":"#VALUE!"}},{"$error":"#VALUE!"}]
[{"$f":"IF(OR(A50='Dati input'!$AF$39,PAM!A50=\"\"),\"\",PAM!A50+1)","v":47},"2024-12-18",{"$error":"#VALUE!"},{"$f":"IF(A51=\"\",\"\",IF(A51<=9,0,IF(A51='Dati input'!$AF$39,'Dati input'!$D$38-SUM(PAM!$D$5:D50),'Dati input'!$D$53)))","v":"na"},{"$f":"IF(A51=\"\",\"\",1.9%/12*PAM!F50)","v":{"$error":"#VALUE!"}},{"$error":"#VALUE!"},1430,3.9178082191780823,{"$error":"#VALUE!"},{"$error":"#VALUE!"},null,"na",{"$error":"#VALUE!"},null,{"$f":"IF(A51=\"\",\"\",1.75%/12*PAM!F50)","v":{"$error":"#VALUE!"}},{"$error":"#VALUE!"},{"$error":"#VALUE!"},null,{"$f":"I51+IF('Dati input'!$D$41=\"NO\",0,12.85)","v":{"$error":"#VALUE!"}},{"$error":"#VALUE!"}]
[{"$f":"IF(OR(A51='Dati input'!$AF$39,PAM!A51=\"\"),\"\",PAM!A51+1)","v":48},"2025-01-18",{"$error":"#VALUE!"},{"$f":"IF(A52=\"\",\"\",IF(A52<=9,0,IF(A52='Dati input'!$AF$39,'Dati input'!$D$38-SUM(PAM!$D$5:D51),'Dati input'!$D$53)))","v":"na"},{"$f":"IF(A52=\"\",\"\",1.9%/12*PAM!F51)","v":{"$error":"#VALUE!"}},{"$error":"#VALUE!"},1461,4.0027397260273974,{"$error":"#VALUE!"},{"$error":"#VALUE!"},null,"na",{"$error":"#VALUE!"},null,{"$f":"IF(A52=\"\",\"\",1.75%/12*PAM!F51)","v":{"$error":"#VALUE!"}},{"$error":"#VALUE!"},{"$error":"#VALUE!"},null,{"$f":"I52+IF('Dati input'!$D$41=\"NO\",0,12.85)","v":{"$error":"#VALUE!"}},{"$error":"#VALUE!"}]
[{"$f":"IF(OR(A52='Dati input'!$AF$39,PAM!A52=\"\"),\"\",PAM!A52+1)","v":49},"2025-02-18",{"$error":"#VALUE!"},{"$f":"IF(A53=\"\",\"\",IF(A53<=9,0,IF(A53='Dati input'!$AF$39,'Dati input'!$D$38-SUM(PAM!$D$5:D52),'Dati input'!$D$53)))","v":"na"},{"$f":"IF(A53=\"\",\"\",1.9%/12*PAM!F52)","v":{"$error":"#VALUE!"}},{"$error":"#VALUE!"},1492,4.087671232876712,{"$error":"#VALUE!"},{"$error":"#VALUE!"},null,"na",{"$error":"#VALUE!"},null,{"$f":"IF(A53=\"\",\"\",1.75%/12*PAM!F52)","v":{"$error":"#VALUE!"}},{"$error":"#VALUE!"},{"$error":"#VALUE!"},null,{"$f":"I53+IF('Dati input'!$D$41=\"NO\",0,12.85)","v":{"$error":"#VALUE!"}},{"$error":"#VALUE!"}]
[{"$f":"IF(OR(A53='Dati input'!$AF$39,PAM!A53=\"\"),\"\",PAM!A53+1)","v":50},"2025-03-18",{"$error":"#VALUE!"},{"$f":"IF(A54=\"\",\"\",IF(A54<=9,0,IF(A54='Dati input'!$AF$39,'Dati input'!$D$38-SUM(PAM!$D$5:D53),'Dati input'!$D$53)))","v":"na"},{"$f":"IF(A54=\"\",\"\",1.9%/12*PAM!F53)","v":{"$error":"#VALUE!"}},{"$error":"#VALUE!"},1520,4.1643835616438354,{"$error":"#VALUE!"},{"$error":"#VALUE!"},null,"na",{"$error":"#VALUE!"},null,{"$f":"IF(A54=\"\",\"\",1.75%/12*PAM!F53)","v":{"$error":"#VALUE!"}},{"$error":"#VALUE!"},{"$error":"#VALUE!"},null,{"$f":"I54+IF('Dati input'!$D$41=\"NO\",0,12.85)","v":{"$error":"#VALUE!"}},{"$error":"#VALUE!"}]
[{"$f":"IF(OR(A54='Dati input'!$AF$39,PAM!A54=\"\"),\"\",PAM!A54+1)","v":51},"2025-04-18",{"$error":"#VALUE!"},{"$f":"IF(A55=\"\",\"\",IF(A55<=9,0,IF(A55='Dati input'!$AF$39,'Dati input'!$D$38-SUM(PAM!$D$5:D54),'Dati input'!$D$53)))","v":"na"},{"$f":"IF(A55=\"\",\"\",1.9%/12*PAM!F54)","v":{"$error":"#VALUE!"}},{"$error":"#VALUE!"},1551,4.2493150684931509,{"$error":"#VALUE!"},{"$error":"#VALUE!"},null,"na",{"$error":"#VALUE!"},null,{"$f":"IF(A55=\"\",\"\",1.75%/12*PAM!F54)","v":{"$error":"#VALUE!"}},{"$error":"#VALUE!"},{"$error":"#VALUE!"},null,{"$f":"I55+IF('Dati input'!$D$41=\"NO\",0,12.85)","v":{"$error":"#VALUE!"}},{"$error":"#VALUE!"}]
[{"$f":"IF(OR(A55='Dati input'!$AF$39,PAM!A55=\"\"),\"\",PAM!A55+1)","v":52},"2025-05-18",{"$error":"#VALUE!"},{"$f":"IF(A56=\"\",\"\",IF(A56<=9,0,IF(A56='Dati input'!$AF$39,'Dati input'!$D$38-SUM(PAM!$D$5:D55),'Dati input'!$D$53)))","v":"na"},{"$f":"IF(A56=\"\",\"\",1.9%/12*PAM!F55)","v":{"$error":"#VALUE!"}},{"$error":"#VALUE!"},1581,4.3315068493150681,{"$error":"#VALUE!"},{"$error":"#VALUE!"},null,"na",{"$error":"#VALUE!"},null,{"$f":"IF(A56=\"\",\"\",1.75%/12*PAM!F55)","v":{"$error":"#VALUE!"}},{"$error":"#VALUE!"},{"$error":"#VALUE!"},null,{"$f":"I56+IF('Dati input'!$D$41=\"NO\",0,12.85)","v":{"$error":"#VALUE!"}},{"$error":"#VALUE!"}]
[{"$f":"IF(OR(A56='Dati input'!$AF$39,PAM!A56=\"\"),\"\",PAM!A56+1)","v":53},"2025-06-18",{"$error":"#VALUE!"},{"$f":"IF(A57=\"\",\"\",IF(A57<=9,0,IF(A57='Dati input'!$AF$39,'Dati input'!$D$38-SUM(PAM!$D$5:D56),'Dati input'!$D$53)))","v":"na"},{"$f":"IF(A57=\"\",\"\",1.9%/12*PAM!F56)","v":{"$error":"#VALUE!"}},{"$error":"#VALUE!"},1612,4.4164383561643836,{"$error":"#VALUE!"},{"$error":"#VALUE!"},null,"na",{"$error":"#VALUE!"},null,{"$f":"IF(A57=\"\",\"\",1.75%/12*PAM!F56)","v":{"$error":"#VALUE!"}},{"$error":"#VALUE!"},{"$error":"#VALUE!"},null,{"$f":"I57+IF('Dati input'!$D$41=\"NO\",0,12.85)","v":{"$error":"#VALUE!"}},{"$error":"#VALUE!"}]
[{"$f":"IF(OR(A57='Dati input'!$AF$39,PAM!A57=\"\"),\"\",PAM!A57+1)","v":54},"2025-07-18",{"$error":"#VALUE!"},{"$f":"IF(A58=\"\",\"\",IF(A58<=9,0,IF(A58='Dati input'!$AF$39,'Dati input'!$D$38-SUM(PAM!$D$5:D57),'Dati input'!$D$53)))","v":"na"},{"$f":"IF(A58=\"\",\"\",1.9%/12*PAM!F57)","v":{"$error":"#VALUE!"}},{"$error":"#VALUE!"},1642,4.4986301369863018,{"$error":"#VALUE!"},{"$error":"#VALUE!"},null,"na",{"$error":"#VALUE!"},null,{"$f":"IF(A58=\"\",\"\",1.75%/12*PAM!F57)","v":{"$error":"#VALUE!"}},{"$error":"#VALUE!"},{"$error":"#VALUE!"},null,{"$f":"I58+IF('Dati input'!$D$41=\"NO\",0,12.85)","v":{"$error":"#VALUE!"}},{"$error":"#VALUE!"}]
[{"$f":"IF(OR(A58='Dati input'!$AF$39,PAM!A58=\"\"),\"\",PAM!A58+1)","v":55},"2025-08-18",{"$error":"#VALUE!"},{"$f":"IF(A59=\"\",\"\",IF(A59<=9,0,IF(A59='Dati input'!$AF$39,'Dati input'!$D$38-SUM(PAM!$D$5:D58),'Dati input'!$D$53)))","v":"na"},{"$f":"IF(A59=\"\",\"\",1.9%/12*PAM!F58)","v":{"$error":"#VALUE!"}},{"$error":"#VALUE!"},1673,4.5835616438356164,{"$error":"#VALUE!"},{"$error":"#VALUE!"},null,"na",{"$error":"#VALUE!"},null,{"$f":"IF(A59=\"\",\"\",1.75%/12*PAM!F58)","v":{"$error":"#VALUE!"}},{"$error":"#VALUE!"},{"$error":"#VALUE!"},null,{"$f":"I59+IF('Dati input'!$D$41=\"NO\",0,12.85)","v":{"$error":"#VALUE!"}},{"$error":"#VALUE!"}]
[{"$f":"IF(OR(A59='Dati input'!$AF$39,PAM!A59=\"\"),\"\",PAM!A59+1)","v":56},"2025-09-18",{"$error":"#VALUE!"},{"$f":"IF(A60=\"\",\"\",IF(A60<=9,0,IF(A60='Dati input'!$AF$39,'Dati input'!$D$38-SUM(PAM!$D$5:D59),'Dati input'!$D$53)))","v":"na"},{"$f":"IF(A60=\"\",\"\",1.9%/12*PAM!F59)","v":{"$error":"#VALUE!"}},{"$error":"#VALUE!"},1704,4.6684931506849319,{"$error":"#VALUE!"},{"$error":"#VALUE!"},null,"na",{"$error":"#VALUE!"},null,{"$f":"IF(A60=\"\",\"\",1.75%/12*PAM!F59)","v":{"$error":"#VALUE!"}},{"$error":"#VALUE!"},{"$error":"#VALUE!"},null,{"$f":"I60+IF('Dati input'!$D$41=\"NO\",0,12.85)","v":{"$error":"#VALUE!"}},{"$error":"#VALUE!"}]
[{"$f":"IF(OR(A60='Dati input'!$AF$39,PAM!A60=\"\"),\"\",PAM!A60+1)","v":57},"2025-10-18",{"$error":"#VALUE!"},{"$f":"IF(A61=\"\",\"\",IF(A61<=9,0,IF(A61='Dati input'!$AF$39,'Dati input'!$D$38-SUM(PAM!$D$5:D60),'Dati input'!$D$53)))","v":"na"},{"$f":"IF(A61=\"\",\"\",1.9%/12*PAM!F60)","v":{"$error":"#VALUE!"}},{"$error":"#VALUE!"},1734,4.7506849315068491,{"$error":"#VALUE!"},{"$error":"#VALUE!"},null,"na",{"$error":"#VALUE!"},null,{"$f":"IF(A61=\"\",\"\",1.75%/12*PAM!F60)","v":{"$error":"#VALUE!"}},{"$error":"#VALUE!"},{"$error":"#VALUE!"},null,{"$f":"I61+IF('Dati input'!$D$41=\"NO\",0,12.85)","v":{"$error":"#VALUE!"}},{"$error":"#VALUE!"}]
[{"$f":"IF(OR(A61='Dati input'!$AF$39,PAM!A61=\"\"),\"\",PAM!A61+1)","v":58},"2025-11-18",{"$error":"#VALUE!"},{"$f":"IF(A62=\"\",\"\",IF(A62<=9,0,IF(A62='Dati input'!$AF$39,'Dati input'!$D$38-SUM(PAM!$D$5:D61),'Dati input'!$D$53)))","v":"na"},{"$f":"IF(A62=\"\",\"\",1.9%/12*PAM!F61)","v":{"$error":"#VALUE!"}},{"$error":"#VALUE!"},1765,4.8356164383561646,{"$error":"#VALUE!"},{"$error":"#VALUE!"},null,"na",{"$error":"#VALUE!"},null,{"$f":"IF(A62=\"\",\"\",1.75%/12*PAM!F61)","v":{"$error":"#VALUE!"}},{"$error":"#VALUE!"},{"$error":"#VALUE!"},null,{"$f":"I62+IF('Dati input'!$D$41=\"NO\",0,12.85)","v":{"$error":"#VALUE!"}},{"$error":"#VALUE!"}]
[{"$f":"IF(OR(A62='Dati input'!$AF$39,PAM!A62=\"\"),\"\",PAM!A62+1)","v":59},"2025-12-18",{"$error":"#VALUE!"},{"$f":"IF(A63=\"\",\"\",IF(A63<=9,0,IF(A63='Dati input'!$AF$39,'Dati input'!$D$38-SUM(PAM!$D$5:D62),'Dati input'!$D$53)))","v":"na"},{"$f":"IF(A63=\"\",\"\",1.9%/12*PAM!F62)","v":{"$error":"#VALUE!"}},{"$error":"#VALUE!"},1795,4.9178082191780819,{"$error":"#VALUE!"},{"$error":"#VALUE!"},null,"na",{"$error":"#VALUE!"},null,{"$f":"IF(A63=\"\",\"\",1.75%/12*PAM!F62)","v":{"$error":"#VALUE!"}},{"$error":"#VALUE!"},{"$error":"#VALUE!"},null,{"$f":"I63+IF('Dati input'!$D$41=\"NO\",0,12.85)","v":{"$error":"#VALUE!"}},{"$error":"#VALUE!"}]
[{"$f":"IF(OR(A63='Dati input'!$AF$39,PAM!A63=\"\"),\"\",PAM!A63+1)","v":60},"2026-01-18",{"$error":"#VALUE!"},{"$f":"IF(A64=\"\",\"\",IF(A64<=9,0,IF(A64='Dati input'!$AF$39,'Dati input'!$D$38-SUM(PAM!$D$5:D63),'Dati input'!$D$53)))","v":"na"},{"$f":"IF(A64=\"\",\"\",1.9%/12*PAM!F63)","v":{"$error":"#VALUE!"}},{"$error":"#VALUE!"},1826,5.0027397260273974,{"$error":"#VALUE!"},{"$error":"#VALUE!"},null,"na",{"$error":"#VALUE!"},null,{"$f":"IF(A64=\"\",\"\",1.75%/12*PAM!F63)","v":{"$error":"#VALUE!"}},{"$error":"#VALUE!"},{"$error":"#VALUE!"},null,{"$f":"I64+IF('Dati input'!$D$41=\"NO\",0,12.85)","v":{"$error":"#VALUE!"}},{"$error":"#VALUE!"}]
[{"$f":"IF(OR(A64='Dati input'!$AF$39,PAM!A64=\"\"),\"\",PAM!A64+1)","v":61},"2026-02-18",{"$error":"#VALUE!"},{"$f":"IF(A65=\"\",\"\",IF(A65<=9,0,IF(A65='Dati input'!$AF$39,'Dati input'!$D$38-SUM(PAM!$D$5:D64),'Dati input'!$D$53)))","v":"na"},{"$f":"IF(A65=\"\",\"\",1.9%/12*PAM!F64)","v":{"$error":"#VALUE!"}},{"$error":"#VALUE!"},1857,5.087671232876712,{"$error":"#VALUE!"},{"$error":"#VALUE!"},null,"na",{"$error":"#VALUE!"},null,{"$f":"IF(A65=\"\",\"\",1.75%/12*PAM!F64)","v":{"$error":"#VALUE!"}},{"$error":"#VALUE!"},{"$error":"#VALUE!"},null,{"$f":"I65+IF('Dati input'!$D$41=\"NO\",0,12.85)","v":{"$error":"#VALUE!"}},{"$error":"#VALUE!"}]
[{"$f":"IF(OR(A65='Dati input'!$AF$39,PAM!A65=\"\"),\"\",PAM!A65+1)","v":62},"2026-03-18",{"$error":"#VALUE!"},{"$f":"IF(A66=\"\",\"\",IF(A66<=9,0,IF(A66='Dati input'!$AF$39,'Dati input'!$D$38-SUM(PAM!$D$5:D65),'Dati input'!$D$53)))","v":"na"},{"$f":"IF(A66=\"\",\"\",1.9%/12*PAM!F65)","v":{"$error":"#VALUE!"}},{"$error":"#VALUE!"},1885,5.1643835616438354,{"$error":"#VALUE!"},{"$error":"#VALUE!"},null,"na",{"$error":"#VALUE!"},null,{"$f":"IF(A66=\"\",\"\",1.75%/12*PAM!F65)","v":{"$error":"#VALUE!"}},{"$error":"#VALUE!"},{"$error":"#VALUE!"},null,{"$f":"I66+IF('Dati input'!$D$41=\"NO\",0,12.85)","v":{"$error":"#VALUE!"}},{"$error":"#VALUE!"}]
[{"$f":"IF(OR(A66='Dati input'!$AF$39,PAM!A66=\"\"),\"\",PAM!A66+1)","v":63},"2026-04-18",{"$error":"#VALUE!"},{"$f":"IF(A67=\"\",\"\",IF(A67<=9,0,IF(A67='Dati input'!$AF$39,'Dati input'!$D$38-SUM(PAM!$D$5:D66),'Dati input'!$D$53)))","v":"na"},{"$f":"IF(A67=\"\",\"\",1.9%/12*PAM!F66)","v":{"$error":"#VALUE!"}},{"$error":"#VALUE!"},1916,5.2493150684931509,{"$error":"#VALUE!"},{"$error":"#VALUE!"},null,"na",{"$error":"#VALUE!"},null,{"$f":"IF(A67=\"\",\"\",1.75%/12*PAM!F66)","v":{"$error":"#VALUE!"}},{"$error":"#VALUE!"},{"$error":"#VALUE!"},null,{"$f":"I67+IF('Dati input'!$D$41=\"NO\",0,12.85)","v":{"$error":"#VALUE!"}},{"$error":"#VALUE!"}]
[{"$f":"IF(OR(A67='Dati input'!$AF$39,PAM!A67=\"\"),\"\",PAM!A67+1)","v":64},"2026-05-18",{"$error":"#VALUE!"},{"$f":"IF(A68=\"\",\"\",IF(A68<=9,0,IF(A68='Dati input'!$AF$39,'Dati input'!$D$38-SUM(PAM!$D$5:D67),'Dati input'!$D$53)))","v":"na"},{"$f":"IF(A68=\"\",\"\",1.9%/12*PAM!F67)","v":{"$error":"#VALUE!"}},{"$error":"#VALUE!"},1946,5.3315068493150681,{"$error":"#VALUE!"},{"$error":"#VALUE!"},null,"na",{"$error":"#VALUE!"},null,{"$f":"IF(A68=\"\",\"\",1.75%/12*PAM!F67)","v":{"$error":"#VALUE!"}},{"$error":"#VALUE!"},{"$error":"#VALUE!"},null,{"$f":"I68+IF('Dati input'!$D$41=\"NO\",0,12.85)","v":{"$error":"#VALUE!"}},{"$error":"#VALUE!"}]
[{"$f":"IF(OR(A68='Dati input'!$AF$39,PAM!A68=\"\"),\"\",PAM!A68+1)","v":65},"2026-06-18",{"$error":"#VALUE!"},{"$f":"IF(A69=\"\",\"\",IF(A69<=9,0,IF(A69='Dati input'!$AF$39,'Dati input'!$D$38-SUM(PAM!$D$5:D68),'Dati input'!$D$53)))","v":"na"},{"$f":"IF(A69=\"\",\"\",1.9%/12*PAM!F68)","v":{"$error":"#VALUE!"}},{"$error":"#VALUE!"},1977,5.4164383561643836,{"$error":"#VALUE!"},{"$error":"#VALUE!"},null,"na",{"$error":"#VALUE!"},null,{"$f":"IF(A69=\"\",\"\",1.75%/12*PAM!F68)","v":{"$error":"#VALUE!"}},{"$error":"#VALUE!"},{"$error":"#VALUE!"},null,{"$f":"I69+IF('Dati input'!$D$41=\"NO\",0,12.85)","v":{"$error":"#VALUE!"}},{"$error":"#VALUE!"}]
[{"$f":"IF(OR(A69='Dati input'!$AF$39,PAM!A69=\"\"),\"\",PAM!A69+1)","v":66},{"$f":"IF(A70=\"\",\"\",EDATE(B69,1))","v":"2026-07-18"},{"$f":"IF(A70=\"\",\"\",D70+E70)","v":{"$error":"#VALUE!"}},{"$f":"IF(A70=\"\",\"\",IF(A70<=9,0,IF(A70='Dati input'!$AF$39,'Dati input'!$D$38-SUM(PAM!$D$5:D69),'Dati input'!$D$53)))","v":"na"},{"$f":"IF(A70=\"\",\"\",1.9%/12*PAM!F69)","v":{"$error":"#VALUE!"}},{"$f":"IF(A70=\"\",\"\",F69-D70)","v":{"$error":"#VALUE!"}},{"$f":"IF(A70=\"\",\"\",B70-$B$4)","v":2007},{"$f":"IF(A70=\"\",\"\",G70/365)","v":5.4986301369863018},{"$f":"IF(A70=\"\",0,C70)","v":{"$error":"#VALUE!"}},{"$f":"IF(A70=\"\",0,I70/(1+$K$3)^H70)","v":{"$error":"#VALUE!"}},null,{"$f":"D70","v":"na"},{"$f":"IF(A70=\"\",0,L70/(1+$N$3)^H70)","v":{"$error":"#VALUE!"}},null,{"$f":"IF(A70=\"\",\"\",1.75%/12*PAM!F69)","v":{"$error":"#VALUE!"}},{"$f":"L70+O70","v":{"$error":"#VALUE!"}},{"$f":"IF(A70=\"\",0,P70/(1+$R$3)^H70)","v":{"$error":"#VALUE!"}},null,{"$f":"I70+IF('Dati input'!$D$41=\"NO\",0,12.85)","v":{"$error":"#VALUE!"}},{"$f":"IF(A70=\"\",0,S70/(1+$U$3)^H70)","v":{"$error":"#VALUE!"}}]
[{"$f":"IF(OR(A70='Dati input'!$AF$39,PAM!A70=\"\"),\"\",PAM!A70+1)","v":67},"2026-08-18",{"$error":"#VALUE!"},{"$f":"IF(A71=\"\",\"\",IF(A71<=9,0,IF(A71='Dati input'!$AF$39,'Dati input'!$D$38-SUM(PAM!$D$5:D70),'Dati input'!$D$53)))","v":"na"},{"$f":"IF(A71=\"\",\"\",1.9%/12*PAM!F70)","v":{"$error":"#VALUE!"}},{"$error":"#VALUE!"},2038,5.5835616438356164,{"$error":"#VALUE!"},{"$error":"#VALUE!"},null,"na",{"$error":"#VALUE!"},null,{"$f":"IF(A71=\"\",\"\",1.75%/12*PAM!F70)","v":{"$error":"#VALUE!"}},{"$error":"#VALUE!"},{"$error":"#VALUE!"},null,{"$f":"I71+IF('Dati input'!$D$41=\"NO\",0,12.85)","v":{"$error":"#VALUE!"}},{"$error":"#VALUE!"}]
[{"$f":"IF(OR(A71='Dati input'!$AF$39,PAM!A71=\"\"),\"\",PAM!A71+1)","v":68},"2026-09-18",{"$error":"#VALUE!"},{"$f":"IF(A72=\"\",\"\",IF(A72<=9,0,IF(A72='Dati input'!$AF$39,'Dati input'!$D$38-SUM(PAM!$D$5:D71),'Dati input'!$D$53)))","v":"na"},{"$f":"IF(A72=\"\",\"\",1.9%/12*PAM!F71)","v":{"$error":"#VALUE!"}},{"$error":"#VALUE!"},2069,5.6684931506849319,{"$error":"#VALUE!"},{"$error":"#VALUE!"},null,"na",{"$error":"#VALUE!"},null,{"$f":"IF(A72=\"\",\"\",1.75%/12*PAM!F71)","v":{"$error":"#VALUE!"}},{"$error":"#VALUE!"},{"$error":"#VALUE!"},null,{"$f":"I72+IF('Dati input'!$D$41=\"NO\",0,12.85)","v":{"$error":"#VALUE!"}},{"$error":"#VALUE!"}]
[{"$f":"IF(OR(A72='Dati input'!$AF$39,PAM!A72=\"\"),\"\",PAM!A72+1)","v":69},"2026-10-18",{"$error":"#VALUE!"},{"$f":"IF(A73=\"\",\"\",IF(A73<=9,0,IF(A73='Dati input'!$AF$39,'Dati input'!$D$38-SUM(PAM!$D$5:D72),'Dati input'!$D$53)))","v":"na"},{"$f":"IF(A73=\"\",\"\",1.9%/12*PAM!F72)","v":{"$error":"#VALUE!"}},{"$error":"#VALUE!"},2099,5.7506849315068491,{"$error":"#VALUE!"},{"$error":"#VALUE!"},null,"na",{"$error":"#VALUE!"},null,{"$f":"IF(A73=\"\",\"\",1.75%/12*PAM!F72)","v":{"$error":"#VALUE!"}},{"$error":"#VALUE!"},{"$error":"#VALUE!"},null,{"$f":"I73+IF('Dati input'!$D$41=\"NO\",0,12.85)","v":{"$error":"#VALUE!"}},{"$error":"#VALUE!"}]
[{"$f":"IF(OR(A73='Dati input'!$AF$39,PAM!A73=\"\"),\"\",PAM!A73+1)","v":70},"2026-11-18",{"$error":"#VALUE!"},{"$f":"IF(A74=\"\",\"\",IF(A74<=9,0,IF(A74='Dati input'!$AF$39,'Dati input'!$D$38-SUM(PAM!$D$5:D73),'Dati input'!$D$53)))","v":"na"},{"$f":"IF(A74=\"\",\"\",1.9%/12*PAM!F73)","v":{"$error":"#VALUE!"}},{"$error":"#VALUE!"},2130,5.8356164383561646,{"$error":"#VALUE!"},{"$error":"#VALUE!"},null,"na",{"$error":"#VALUE!"},null,{"$f":"IF(A74=\"\",\"\",1.75%/12*PAM!F73)","v":{"$error":"#VALUE!"}},{"$error":"#VALUE!"},{"$error":"#VALUE!"},null,{"$f":"I74+IF('Dati input'!$D$41=\"NO\",0,12.85)","v":{"$error":"#VALUE!"}},{"$error":"#VALUE!"}]
[{"$f":"IF(OR(A74='Dati input'!$AF$39,PAM!A74=\"\"),\"\",PAM!A74+1)","v":71},"2026-12-18",{"$error":"#VALUE!"},{"$f":"IF(A75=\"\",\"\",IF(A75<=9,0,IF(A75='Dati input'!$AF$39,'Dati input'!$D$38-SUM(PAM!$D$5:D74),'Dati input'!$D$53)))","v":"na"},{"$f":"IF(A75=\"\",\"\",1.9%/12*PAM!F74)","v":{"$error":"#VALUE!"}},{"$error":"#VALUE!"},2160,5.9178082191780819,{"$error":"#VALUE!"},{"$error":"#VALUE!"},null,"na",{"$error":"#VALUE!"},null,{"$f":"IF(A75=\"\",\"\",1.75%/12*PAM!F74)","v":{"$error":"#VALUE!"}},{"$error":"#VALUE!"},{"$error":"#VALUE!"},null,{"$f":"I75+IF('Dati input'!$D$41=\"NO\",0,12.85)","v":{"$error":"#VALUE!"}},{"$error":"#VALUE!"}]
[{"$f":"IF(OR(A75='Dati input'!$AF$39,PAM!A75=\"\"),\"\",PAM!A75+1)","v":72},"2027-01-18",{"$error":"#VALUE!"},{"$f":"IF(A76=\"\",\"\",IF(A76<=9,0,IF(A76='Dati input'!$AF$39,'Dati input'!$D$38-SUM(PAM!$D$5:D75),'Dati input'!$D$53)))","v":"na"},{"$f":"IF(A76=\"\",\"\",1.9%/12*PAM!F75)","v":{"$error":"#VALUE!"}},{"$error":"#VALUE!"},2191,6.0027397260273974,{"$error":"#VALUE!"},{"$error":"#VALUE!"},null,"na",{"$error":"#VALUE!"},null,{"$f":"IF(A76=\"\",\"\",1.75%/12*PAM!F75)","v":{"$error":"#VALUE!"}},{"$error":"#VALUE!"},{"$error":"#VALUE!"},null,{"$f":"I76+IF('Dati input'!$D$41=\"NO\",0,12.85)","v":{"$error":"#VALUE!"}},{"$error":"#VALUE!"}]
[{"$f":"IF(OR(A76='Dati input'!$AF$39,PAM!A76=\"\"),\"\",PAM!A76+1)","v":73},"2027-02-18",{"$error":"#VALUE!"},{"$f":"IF(A77=\"\",\"\",IF(A77<=9,0,IF(A77='Dati input'!$AF$39,'Dati input'!$D$38-SUM(PAM!$D$5:D76),'Dati input'!$D$53)))","v":"na"},{"$f":"IF(A77=\"\",\"\",1.9%/12*PAM!F76)","v":{"$error":"#VALUE!"}},{"$error":"#VALUE!"},2222,6.087671232876712,{"$error":"#VALUE!"},{"$error":"#VALUE!"},null,"na",{"$error":"#VALUE!"},null,{"$f":"IF(A77=\"\",\"\",1.75%/12*PAM!F76)","v":{"$error":"#VALUE!"}},{"$error":"#VALUE!"},{"$error":"#VALUE!"},null,{"$f":"I77+IF('Dati input'!$D$41=\"NO\",0,12.85)","v":{"$error":"#VALUE!"}},{"$error":"#VALUE!"}]
[{"$f":"IF(OR(A77='Dati input'!$AF$39,PAM!A77=\"\"),\"\",PAM!A77+1)","v":74},"2027-03-18",{"$error":"#VALUE!"},{"$f":"IF(A78=\"\",\"\",IF(A78<=9,0,IF(A78='Dati input'!$AF$39,'Dati input'!$D$38-SUM(PAM!$D$5:D77),'Dati input'!$D$53)))","v":"na"},{"$f":"IF(A78=\"\",\"\",1.9%/12*PAM!F77)","v":{"$error":"#VALUE!"}},{"$error":"#VALUE!"},2250,6.1643835616438354,{"$error":"#VALUE!"},{"$error":"#VALUE!"},null,"na",{"$error":"#VALUE!"},null,{"$f":"IF(A78=\"\",\"\",1.75%/12*PAM!F77)","v":{"$error":"#VALUE!"}},{"$error":"#VALUE!"},{"$error":"#VALUE!"},null,{"$f":"I78+IF('Dati input'!$D$41=\"NO\",0,12.85)","v":{"$error":"#VALUE!"}},{"$error":"#VALUE!"}]
[{"$f":"IF(OR(A78='Dati input'!$AF$39,PAM!A78=\"\"),\"\",PAM!A78+1)","v":75},"2027-04-18",{"$error":"#VALUE!"},{"$f":"IF(A79=\"\",\"\",IF(A79<=9,0,IF(A79='Dati input'!$AF$39,'Dati input'!$D$38-SUM(PAM!$D$5:D78),'Dati input'!$D$53)))","v":"na"},{"$f":"IF(A79=\"\",\"\",1.9%/12*PAM!F78)","v":{"$error":"#VALUE!"}},{"$error":"#VALUE!"},2281,6.2493150684931509,{"$error":"#VALUE!"},{"$error":"#VALUE!"},null,"na",{"$error":"#VALUE!"},null,{"$f":"IF(A79=\"\",\"\",1.75%/12*PAM!F78)","v":{"$error":"#VALUE!"}},{"$error":"#VALUE!"},{"$error":"#VALUE!"},null,{"$f":"I79+IF('Dati input'!$D$41=\"NO\",0,12.85)","v":{"$error":"#VALUE!"}},{"$error":"#VALUE!"}]

{"sheet":"Piano di ammortamento","index":4,"n_rows":79,"n_cols":13,"rows_kept":79,"cut":false,"hidden":false,"merged":[[0,0,0,5],[0,7,0,12]]}
["PIANO DI AMMORTAMENTO PURAMENTE INDICATIVO NELL'IPOTESI DI TAN 1,90%",null,null,null,null,null,null,"PIANO DI AMMORTAMENTO PURAMENTE INDICATIVO NELL'IPOTESI DI TAN 1,75%"]
["N. rata","Data","Rata","Capitale","Interessi","Capitale residuo",null,"N. rata","Data","Rata","Capitale","Interessi","Capitale residuo"]
[]
[null,{"$f":"TODAY()","v":"2021-01-18"},null,null,null,{"$f":"'Dati input'!D38","v":0},null,null,{"$f":"B4","v":"2021-01-18"},null,null,null,{"$f":"F4","v":0}]
[{"$f":"IF(OR('Dati input'!AF39=\"\",'Dati input'!D38=\"\"),\"\",1)","v":""},{"$f":"IF(OR('Dati input'!AF39=\"\",'Dati input'!D38=\"\"),\"\",EOMONTH(B4,0))","v":""},{"$f":"IF(A5=\"\",\"\",D5+E5)","v":""},{"$f":"IF(A5=\"\",\"\",IF(A5<=9,0,'Dati input'!$D$53))","v":""},{"$f":"IF(A5=\"\",\"\",1.9%/360*(DAYS360(B4,B5)*PAM!F4))","v":""},{"$f":"IF(A5=\"\",\"\",F4-D5)","v":""},null,{"$f":"A5","v":""},{"$f":"B5","v":""},{"$f":"IF(H5=\"\",\"\",K5+L5)","v":""},{"$f":"D5","v":""},{"$f":"IF(A5=\"\",\"\",1.75%/360*(DAYS360(B4,B5)*PAM!F4))","v":""},{"$f":"IF(H5=\"\",\"\",M4-K5)","v":""}]
[{"$f":"IF(OR(A5='Dati input'!$AF$39,A5=\"\",'Dati input'!AF39=\"\",'Dati input'!D38=\"\"),\"\",A5+1)","v":""},{"$f":"IF(A6=\"\",\"\",EOMONTH(B5,1))","v":""},{"$f":"IF(A6=\"\",\"\",D6+E6)","v":""},{"$f":"IF(A6=\"\",\"\",IF(A6<=9,0,IF(A6='Dati input'!$AF$39,'Dati input'!$D$38-SUM(PAM!$D$5:D5),'Dati input'!$D$53)))","v":""},{"$f":"IF(A6=\"\",\"\",1.9%/12*PAM!F5)","v":""},{"$f":"IF(A6=\"\",\"\",F5-D6)","v":""},null,{"$f":"A6","v":""},"",{"$f":"IF(H6=\"\",\"\",K6+L6)","v":""},{"$f":"D6","v":""},{"$f":"IF(A6=\"\",\"\",1.75%/12*PAM!F5)","v":""},{"$f":"IF(H6=\"\",\"\",M5-K6)","v":""}]
[{"$f":"IF(OR(A6='Dati input'!$AF$39,A6=\"\"),\"\",A6+1)","v":""},{"$f":"IF(A7=\"\",\"\",EOMONTH(B6,1))","v":""},"",{"$f":"IF(A7=\"\",\"\",IF(A7<=9,0,IF(A7='Dati input'!$AF$39,'Dati input'!$D$38-SUM(PAM!$D$5:D6),'Dati input'!$D$53)))","v":""},{"$f":"IF(A7=\"\",\"\",1.9%/12*PAM!F6)","v":""},"",null,"","","","",{"$f":"IF(A7=\"\",\"\",1.75%/12*PAM!F6)","v":""},""]
[{"$f":"IF(OR(A7='Dati input'!$AF$39,A7=\"\"),\"\",A7+1)","v":""},"","",{"$f":"IF(A8=\"\",\"\",IF(A8<=9,0,IF(A8='Dati input'!$AF$39,'Dati input'!$D$38-SUM(PAM!$D$5:D7),'Dati input'!$D$53)))","v":""},{"$f":"IF(A8=\"\",\"\",1.9%/12*PAM!F7)","v":""},"",null,"","","","",{"$f":"IF(A8=\"\",\"\",1.75%/12*PAM!F7)","v":""},""]
[{"$f":"IF(OR(A8='Dati input'!$AF$39,A8=\"\"),\"\",A8+1)","v":""},"","",{"$f":"IF(A9=\"\",\"\",IF(A9<=9,0,IF(A9='Dati input'!$AF$39,'Dati input'!$D$38-SUM(PAM!$D$5:D8),'Dati input'!$D$53)))","v":""},{"$f":"IF(A9=\"\",\"\",1.9%/12*PAM!F8)","v":""},"",null,"","","","",{"$f":"IF(A9=\"\",\"\",1.75%/12*PAM!F8)","v":""},""]
[{"$f":"IF(OR(A9='Dati input'!$AF$39,A9=\"\"),\"\",A9+1)","v":""},"","",{"$f":"IF(A10=\"\",\"\",IF(A10<=9,0,IF(A10='Dati input'!$AF$39,'Dati input'!$D$38-SUM(PAM!$D$5:D9),'Dati input'!$D$53)))","v":""},{"$f":"IF(A10=\"\",\"\",1.9%/12*PAM!F9)","v":""},"",null,"","","","",{"$f":"IF(A10=\"\",\"\",1.75%/12*PAM!F9)","v":""},""]
[{"$f":"IF(OR(A10='Dati input'!$AF$39,A10=\"\"),\"\",A10+1)","v":""},"","",{"$f":"IF(A11=\"\",\"\",IF(A11<=9,0,IF(A11='Dati input'!$AF$39,'Dati input'!$D$38-SUM(PAM!$D$5:D10),'Dati input'!$D$53)))","v":""},{"$f":"IF(A11=\"\",\"\",1.9%/12*PAM!F10)","v":""},"",null,"","","","",{"$f":"IF(A11=\"\",\"\",1.75%/12*PAM!F10)","v":""},""]
[{"$f":"IF(OR(A11='Dati input'!$AF$39,A11=\"\"),\"\",A11+1)","v":""},"","",{"$f":"IF(A12=\"\",\"\",IF(A12<=9,0,IF(A12='Dati input'!$AF$39,'Dati input'!$D$38-SUM(PAM!$D$5:D11),'Dati input'!$D$53)))","v":""},{"$f":"IF(A12=\"\",\"\",1.9%/12*PAM!F11)","v":""},"",null,"","","","",{"$f":"IF(A12=\"\",\"\",1.75%/12*PAM!F11)","v":""},""]
[{"$f":"IF(OR(A12='Dati input'!$AF$39,A12=\"\"),\"\",A12+1)","v":""},"","",{"$f":"IF(A13=\"\",\"\",IF(A13<=9,0,IF(A13='Dati input'!$AF$39,'Dati input'!$D$38-SUM(PAM!$D$5:D12),'Dati input'!$D$53)))","v":""},{"$f":"IF(A13=\"\",\"\",1.9%/12*PAM!F12)","v":""},"",null,"","","","",{"$f":"IF(A13=\"\",\"\",1.75%/12*PAM!F12)","v":""},""]
[{"$f":"IF(OR(A13='Dati input'!$AF$39,A13=\"\"),\"\",A13+1)","v":""},"","",{"$f":"IF(A14=\"\",\"\",IF(A14<=9,0,IF(A14='Dati input'!$AF$39,'Dati input'!$D$38-SUM(PAM!$D$5:D13),'Dati input'!$D$53)))","v":""},{"$f":"IF(A14=\"\",\"\",1.9%/12*PAM!F13)","v":""},"",null,"","","","",{"$f":"IF(A14=\"\",\"\",1.75%/12*PAM!F13)","v":""},""]
[{"$f":"IF(OR(A14='Dati input'!$AF$39,A14=\"\"),\"\",A14+1)","v":""},"","",{"$f":"IF(A15=\"\",\"\",IF(A15<=9,0,IF(A15='Dati input'!$AF$39,'Dati input'!$D$38-SUM(PAM!$D$5:D14),'Dati input'!$D$53)))","v":""},{"$f":"IF(A15=\"\",\"\",1.9%/12*PAM!F14)","v":""},"",null,"","","","",{"$f":"IF(A15=\"\",\"\",1.75%/12*PAM!F14)","v":""},""]
[{"$f":"IF(OR(A15='Dati input'!$AF$39,A15=\"\"),\"\",A15+1)","v":""},"","",{"$f":"IF(A16=\"\",\"\",IF(A16<=9,0,IF(A16='Dati input'!$AF$39,'Dati input'!$D$38-SUM(PAM!$D$5:D15),'Dati input'!$D$53)))","v":""},{"$f":"IF(A16=\"\",\"\",1.9%/12*PAM!F15)","v":""},"",null,"","","","",{"$f":"IF(A16=\"\",\"\",1.75%/12*PAM!F15)","v":""},""]
[{"$f":"IF(OR(A16='Dati input'!$AF$39,A16=\"\"),\"\",A16+1)","v":""},"","",{"$f":"IF(A17=\"\",\"\",IF(A17<=9,0,IF(A17='Dati input'!$AF$39,'Dati input'!$D$38-SUM(PAM!$D$5:D16),'Dati input'!$D$53)))","v":""},{"$f":"IF(A17=\"\",\"\",1.9%/12*PAM!F16)","v":""},"",null,"","","","",{"$f":"IF(A17=\"\",\"\",1.75%/12*PAM!F16)","v":""},""]
[{"$f":"IF(OR(A17='Dati input'!$AF$39,A17=\"\"),\"\",A17+1)","v":""},"","",{"$f":"IF(A18=\"\",\"\",IF(A18<=9,0,IF(A18='Dati input'!$AF$39,'Dati input'!$D$38-SUM(PAM!$D$5:D17),'Dati input'!$D$53)))","v":""},{"$f":"IF(A18=\"\",\"\",1.9%/12*PAM!F17)","v":""},"",null,"","","","",{"$f":"IF(A18=\"\",\"\",1.75%/12*PAM!F17)","v":""},""]
[{"$f":"IF(OR(A18='Dati input'!$AF$39,A18=\"\"),\"\",A18+1)","v":""},"","",{"$f":"IF(A19=\"\",\"\",IF(A19<=9,0,IF(A19='Dati input'!$AF$39,'Dati input'!$D$38-SUM(PAM!$D$5:D18),'Dati input'!$D$53)))","v":""},{"$f":"IF(A19=\"\",\"\",1.9%/12*PAM!F18)","v":""},"",null,"","","","",{"$f":"IF(A19=\"\",\"\",1.75%/12*PAM!F18)","v":""},""]
[{"$f":"IF(OR(A19='Dati input'!$AF$39,A19=\"\"),\"\",A19+1)","v":""},"","",{"$f":"IF(A20=\"\",\"\",IF(A20<=9,0,IF(A20='Dati input'!$AF$39,'Dati input'!$D$38-SUM(PAM!$D$5:D19),'Dati input'!$D$53)))","v":""},{"$f":"IF(A20=\"\",\"\",1.9%/12*PAM!F19)","v":""},"",null,"","","","",{"$f":"IF(A20=\"\",\"\",1.75%/12*PAM!F19)","v":""},""]
[{"$f":"IF(OR(A20='Dati input'!$AF$39,A20=\"\"),\"\",A20+1)","v":""},"","",{"$f":"IF(A21=\"\",\"\",IF(A21<=9,0,IF(A21='Dati input'!$AF$39,'Dati input'!$D$38-SUM(PAM!$D$5:D20),'Dati input'!$D$53)))","v":""},{"$f":"IF(A21=\"\",\"\",1.9%/12*PAM!F20)","v":""},"",null,"","","","",{"$f":"IF(A21=\"\",\"\",1.75%/12*PAM!F20)","v":""},""]
[{"$f":"IF(OR(A21='Dati input'!$AF$39,A21=\"\"),\"\",A21+1)","v":""},"","",{"$f":"IF(A22=\"\",\"\",IF(A22<=9,0,IF(A22='Dati input'!$AF$39,'Dati input'!$D$38-SUM(PAM!$D$5:D21),'Dati input'!$D$53)))","v":""},{"$f":"IF(A22=\"\",\"\",1.9%/12*PAM!F21)","v":""},"",null,"","","","",{"$f":"IF(A22=\"\",\"\",1.75%/12*PAM!F21)","v":""},""]
[{"$f":"IF(OR(A22='Dati input'!$AF$39,A22=\"\"),\"\",A22+1)","v":""},"","",{"$f":"IF(A23=\"\",\"\",IF(A23<=9,0,IF(A23='Dati input'!$AF$39,'Dati input'!$D$38-SUM(PAM!$D$5:D22),'Dati input'!$D$53)))","v":""},{"$f":"IF(A23=\"\",\"\",1.9%/12*PAM!F22)","v":""},"",null,"","","","",{"$f":"IF(A23=\"\",\"\",1.75%/12*PAM!F22)","v":""},""]
[{"$f":"IF(OR(A23='Dati input'!$AF$39,A23=\"\"),\"\",A23+1)","v":""},"","",{"$f":"IF(A24=\"\",\"\",IF(A24<=9,0,IF(A24='Dati input'!$AF$39,'Dati input'!$D$38-SUM(PAM!$D$5:D23),'Dati input'!$D$53)))","v":""},{"$f":"IF(A24=\"\",\"\",1.9%/12*PAM!F23)","v":""},"",null,"","","","",{"$f":"IF(A24=\"\",\"\",1.75%/12*PAM!F23)","v":""},""]
[{"$f":"IF(OR(A24='Dati input'!$AF$39,A24=\"\"),\"\",A24+1)","v":""},"","",{"$f":"IF(A25=\"\",\"\",IF(A25<=9,0,IF(A25='Dati input'!$AF$39,'Dati input'!$D$38-SUM(PAM!$D$5:D24),'Dati input'!$D$53)))","v":""},{"$f":"IF(A25=\"\",\"\",1.9%/12*PAM!F24)","v":""},"",null,"","","","",{"$f":"IF(A25=\"\",\"\",1.75%/12*PAM!F24)","v":""},""]
[{"$f":"IF(OR(A25='Dati input'!$AF$39,A25=\"\"),\"\",A25+1)","v":""},"","",{"$f":"IF(A26=\"\",\"\",IF(A26<=9,0,IF(A26='Dati input'!$AF$39,'Dati input'!$D$38-SUM(PAM!$D$5:D25),'Dati input'!$D$53)))","v":""},{"$f":"IF(A26=\"\",\"\",1.9%/12*PAM!F25)","v":""},"",null,"","","","",{"$f":"IF(A26=\"\",\"\",1.75%/12*PAM!F25)","v":""},""]
[{"$f":"IF(OR(A26='Dati input'!$AF$39,A26=\"\"),\"\",A26+1)","v":""},"","",{"$f":"IF(A27=\"\",\"\",IF(A27<=9,0,IF(A27='Dati input'!$AF$39,'Dati input'!$D$38-SUM(PAM!$D$5:D26),'Dati input'!$D$53)))","v":""},{"$f":"IF(A27=\"\",\"\",1.9%/12*PAM!F26)","v":""},"",null,"","","","",{"$f":"IF(A27=\"\",\"\",1.75%/12*PAM!F26)","v":""},""]
[{"$f":"IF(OR(A27='Dati input'!$AF$39,A27=\"\"),\"\",A27+1)","v":""},"","",{"$f":"IF(A28=\"\",\"\",IF(A28<=9,0,IF(A28='Dati input'!$AF$39,'Dati input'!$D$38-SUM(PAM!$D$5:D27),'Dati input'!$D$53)))","v":""},{"$f":"IF(A28=\"\",\"\",1.9%/12*PAM!F27)","v":""},"",null,"","","","",{"$f":"IF(A28=\"\",\"\",1.75%/12*PAM!F27)","v":""},""]
[{"$f":"IF(OR(A28='Dati input'!$AF$39,A28=\"\"),\"\",A28+1)","v":""},"","",{"$f":"IF(A29=\"\",\"\",IF(A29<=9,0,IF(A29='Dati input'!$AF$39,'Dati input'!$D$38-SUM(PAM!$D$5:D28),'Dati input'!$D$53)))","v":""},{"$f":"IF(A29=\"\",\"\",1.9%/12*PAM!F28)","v":""},"",null,"","","","",{"$f":"IF(A29=\"\",\"\",1.75%/12*PAM!F28)","v":""},""]
[{"$f":"IF(OR(A29='Dati input'!$AF$39,A29=\"\"),\"\",A29+1)","v":""},"","",{"$f":"IF(A30=\"\",\"\",IF(A30<=9,0,IF(A30='Dati input'!$AF$39,'Dati input'!$D$38-SUM(PAM!$D$5:D29),'Dati input'!$D$53)))","v":""},{"$f":"IF(A30=\"\",\"\",1.9%/12*PAM!F29)","v":""},"",null,"","","","",{"$f":"IF(A30=\"\",\"\",1.75%/12*PAM!F29)","v":""},""]
[{"$f":"IF(OR(A30='Dati input'!$AF$39,A30=\"\"),\"\",A30+1)","v":""},"","",{"$f":"IF(A31=\"\",\"\",IF(A31<=9,0,IF(A31='Dati input'!$AF$39,'Dati input'!$D$38-SUM(PAM!$D$5:D30),'Dati input'!$D$53)))","v":""},{"$f":"IF(A31=\"\",\"\",1.9%/12*PAM!F30)","v":""},"",null,"","","","",{"$f":"IF(A31=\"\",\"\",1.75%/12*PAM!F30)","v":""},""]
[{"$f":"IF(OR(A31='Dati input'!$AF$39,A31=\"\"),\"\",A31+1)","v":""},"","",{"$f":"IF(A32=\"\",\"\",IF(A32<=9,0,IF(A32='Dati input'!$AF$39,'Dati input'!$D$38-SUM(PAM!$D$5:D31),'Dati input'!$D$53)))","v":""},{"$f":"IF(A32=\"\",\"\",1.9%/12*PAM!F31)","v":""},"",null,"","","","",{"$f":"IF(A32=\"\",\"\",1.75%/12*PAM!F31)","v":""},""]
[{"$f":"IF(OR(A32='Dati input'!$AF$39,A32=\"\"),\"\",A32+1)","v":""},"","",{"$f":"IF(A33=\"\",\"\",IF(A33<=9,0,IF(A33='Dati input'!$AF$39,'Dati input'!$D$38-SUM(PAM!$D$5:D32),'Dati input'!$D$53)))","v":""},{"$f":"IF(A33=\"\",\"\",1.9%/12*PAM!F32)","v":""},"",null,"","","","",{"$f":"IF(A33=\"\",\"\",1.75%/12*PAM!F32)","v":""},""]
[{"$f":"IF(OR(A33='Dati input'!$AF$39,A33=\"\"),\"\",A33+1)","v":""},"","",{"$f":"IF(A34=\"\",\"\",IF(A34<=9,0,IF(A34='Dati input'!$AF$39,'Dati input'!$D$38-SUM(PAM!$D$5:D33),'Dati input'!$D$53)))","v":""},{"$f":"IF(A34=\"\",\"\",1.9%/12*PAM!F33)","v":""},"",null,"","","","",{"$f":"IF(A34=\"\",\"\",1.75%/12*PAM!F33)","v":""},""]
[{"$f":"IF(OR(A34='Dati input'!$AF$39,A34=\"\"),\"\",A34+1)","v":""},"","",{"$f":"IF(A35=\"\",\"\",IF(A35<=9,0,IF(A35='Dati input'!$AF$39,'Dati input'!$D$38-SUM(PAM!$D$5:D34),'Dati input'!$D$53)))","v":""},{"$f":"IF(A35=\"\",\"\",1.9%/12*PAM!F34)","v":""},"",null,"","","","",{"$f":"IF(A35=\"\",\"\",1.75%/12*PAM!F34)","v":""},""]
[{"$f":"IF(OR(A35='Dati input'!$AF$39,A35=\"\"),\"\",A35+1)","v":""},"","",{"$f":"IF(A36=\"\",\"\",IF(A36<=9,0,IF(A36='Dati input'!$AF$39,'Dati input'!$D$38-SUM(PAM!$D$5:D35),'Dati input'!$D$53)))","v":""},{"$f":"IF(A36=\"\",\"\",1.9%/12*PAM!F35)","v":""},"",null,"","","","",{"$f":"IF(A36=\"\",\"\",1.75%/12*PAM!F35)","v":""},""]
[{"$f":"IF(OR(A36='Dati input'!$AF$39,A36=\"\"),\"\",A36+1)","v":""},"","",{"$f":"IF(A37=\"\",\"\",IF(A37<=9,0,IF(A37='Dati input'!$AF$39,'Dati input'!$D$38-SUM(PAM!$D$5:D36),'Dati input'!$D$53)))","v":""},{"$f":"IF(A37=\"\",\"\",1.9%/12*PAM!F36)","v":""},"",null,"","","","",{"$f":"IF(A37=\"\",\"\",1.75%/12*PAM!F36)","v":""},""]
[{"$f":"IF(OR(A37='Dati input'!$AF$39,A37=\"\"),\"\",A37+1)","v":""},"","",{"$f":"IF(A38=\"\",\"\",IF(A38<=9,0,IF(A38='Dati input'!$AF$39,'Dati input'!$D$38-SUM(PAM!$D$5:D37),'Dati input'!$D$53)))","v":""},{"$f":"IF(A38=\"\",\"\",1.9%/12*PAM!F37)","v":""},"",null,"","","","",{"$f":"IF(A38=\"\",\"\",1.75%/12*PAM!F37)","v":""},""]
[{"$f":"IF(OR(A38='Dati input'!$AF$39,A38=\"\"),\"\",A38+1)","v":""},"","",{"$f":"IF(A39=\"\",\"\",IF(A39<=9,0,IF(A39='Dati input'!$AF$39,'Dati input'!$D$38-SUM(PAM!$D$5:D38),'Dati input'!$D$53)))","v":""},{"$f":"IF(A39=\"\",\"\",1.9%/12*PAM!F38)","v":""},"",null,"","","","",{"$f":"IF(A39=\"\",\"\",1.75%/12*PAM!F38)","v":""},""]
[{"$f":"IF(OR(A39='Dati input'!$AF$39,A39=\"\"),\"\",A39+1)","v":""},"","",{"$f":"IF(A40=\"\",\"\",IF(A40<=9,0,IF(A40='Dati input'!$AF$39,'Dati input'!$D$38-SUM(PAM!$D$5:D39),'Dati input'!$D$53)))","v":""},{"$f":"IF(A40=\"\",\"\",1.9%/12*PAM!F39)","v":""},"",null,"","","","",{"$f":"IF(A40=\"\",\"\",1.75%/12*PAM!F39)","v":""},""]
[{"$f":"IF(OR(A40='Dati input'!$AF$39,A40=\"\"),\"\",A40+1)","v":""},"","",{"$f":"IF(A41=\"\",\"\",IF(A41<=9,0,IF(A41='Dati input'!$AF$39,'Dati input'!$D$38-SUM(PAM!$D$5:D40),'Dati input'!$D$53)))","v":""},{"$f":"IF(A41=\"\",\"\",1.9%/12*PAM!F40)","v":""},"",null,"","","","",{"$f":"IF(A41=\"\",\"\",1.75%/12*PAM!F40)","v":""},""]
[{"$f":"IF(OR(A41='Dati input'!$AF$39,A41=\"\"),\"\",A41+1)","v":""},"","",{"$f":"IF(A42=\"\",\"\",IF(A42<=9,0,IF(A42='Dati input'!$AF$39,'Dati input'!$D$38-SUM(PAM!$D$5:D41),'Dati input'!$D$53)))","v":""},{"$f":"IF(A42=\"\",\"\",1.9%/12*PAM!F41)","v":""},"",null,"","","","",{"$f":"IF(A42=\"\",\"\",1.75%/12*PAM!F41)","v":""},""]
[{"$f":"IF(OR(A42='Dati input'!$AF$39,A42=\"\"),\"\",A42+1)","v":""},"","",{"$f":"IF(A43=\"\",\"\",IF(A43<=9,0,IF(A43='Dati input'!$AF$39,'Dati input'!$D$38-SUM(PAM!$D$5:D42),'Dati input'!$D$53)))","v":""},{"$f":"IF(A43=\"\",\"\",1.9%/12*PAM!F42)","v":""},"",null,"","","","",{"$f":"IF(A43=\"\",\"\",1.75%/12*PAM!F42)","v":""},""]
[{"$f":"IF(OR(A43='Dati input'!$AF$39,A43=\"\"),\"\",A43+1)","v":""},"","",{"$f":"IF(A44=\"\",\"\",IF(A44<=9,0,IF(A44='Dati input'!$AF$39,'Dati input'!$D$38-SUM(PAM!$D$5:D43),'Dati input'!$D$53)))","v":""},{"$f":"IF(A44=\"\",\"\",1.9%/12*PAM!F43)","v":""},"",null,"","","","",{"$f":"IF(A44=\"\",\"\",1.75%/12*PAM!F43)","v":""},""]
[{"$f":"IF(OR(A44='Dati input'!$AF$39,A44=\"\"),\"\",A44+1)","v":""},"","",{"$f":"IF(A45=\"\",\"\",IF(A45<=9,0,IF(A45='Dati input'!$AF$39,'Dati input'!$D$38-SUM(PAM!$D$5:D44),'Dati input'!$D$53)))","v":""},{"$f":"IF(A45=\"\",\"\",1.9%/12*PAM!F44)","v":""},"",null,"","","","",{"$f":"IF(A45=\"\",\"\",1.75%/12*PAM!F44)","v":""},""]
[{"$f":"IF(OR(A45='Dati input'!$AF$39,A45=\"\"),\"\",A45+1)","v":""},"","",{"$f":"IF(A46=\"\",\"\",IF(A46<=9,0,IF(A46='Dati input'!$AF$39,'Dati input'!$D$38-SUM(PAM!$D$5:D45),'Dati input'!$D$53)))","v":""},{"$f":"IF(A46=\"\",\"\",1.9%/12*PAM!F45)","v":""},"",null,"","","","",{"$f":"IF(A46=\"\",\"\",1.75%/12*PAM!F45)","v":""},""]
[{"$f":"IF(OR(A46='Dati input'!$AF$39,A46=\"\"),\"\",A46+1)","v":""},"","",{"$f":"IF(A47=\"\",\"\",IF(A47<=9,0,IF(A47='Dati input'!$AF$39,'Dati input'!$D$38-SUM(PAM!$D$5:D46),'Dati input'!$D$53)))","v":""},{"$f":"IF(A47=\"\",\"\",1.9%/12*PAM!F46)","v":""},"",null,"","","","",{"$f":"IF(A47=\"\",\"\",1.75%/12*PAM!F46)","v":""},""]
[{"$f":"IF(OR(A47='Dati input'!$AF$39,A47=\"\"),\"\",A47+1)","v":""},"","",{"$f":"IF(A48=\"\",\"\",IF(A48<=9,0,IF(A48='Dati input'!$AF$39,'Dati input'!$D$38-SUM(PAM!$D$5:D47),'Dati input'!$D$53)))","v":""},{"$f":"IF(A48=\"\",\"\",1.9%/12*PAM!F47)","v":""},"",null,"","","","",{"$f":"IF(A48=\"\",\"\",1.75%/12*PAM!F47)","v":""},""]
[{"$f":"IF(OR(A48='Dati input'!$AF$39,A48=\"\"),\"\",A48+1)","v":""},"","",{"$f":"IF(A49=\"\",\"\",IF(A49<=9,0,IF(A49='Dati input'!$AF$39,'Dati input'!$D$38-SUM(PAM!$D$5:D48),'Dati input'!$D$53)))","v":""},{"$f":"IF(A49=\"\",\"\",1.9%/12*PAM!F48)","v":""},"",null,"","","","",{"$f":"IF(A49=\"\",\"\",1.75%/12*PAM!F48)","v":""},""]
[{"$f":"IF(OR(A49='Dati input'!$AF$39,A49=\"\"),\"\",A49+1)","v":""},"","",{"$f":"IF(A50=\"\",\"\",IF(A50<=9,0,IF(A50='Dati input'!$AF$39,'Dati input'!$D$38-SUM(PAM!$D$5:D49),'Dati input'!$D$53)))","v":""},{"$f":"IF(A50=\"\",\"\",1.9%/12*PAM!F49)","v":""},"",null,"","","","",{"$f":"IF(A50=\"\",\"\",1.75%/12*PAM!F49)","v":""},""]
[{"$f":"IF(OR(A50='Dati input'!$AF$39,A50=\"\"),\"\",A50+1)","v":""},"","",{"$f":"IF(A51=\"\",\"\",IF(A51<=9,0,IF(A51='Dati input'!$AF$39,'Dati input'!$D$38-SUM(PAM!$D$5:D50),'Dati input'!$D$53)))","v":""},{"$f":"IF(A51=\"\",\"\",1.9%/12*PAM!F50)","v":""},"",null,"","","","",{"$f":"IF(A51=\"\",\"\",1.75%/12*PAM!F50)","v":""},""]
[{"$f":"IF(OR(A51='Dati input'!$AF$39,A51=\"\"),\"\",A51+1)","v":""},"","",{"$f":"IF(A52=\"\",\"\",IF(A52<=9,0,IF(A52='Dati input'!$AF$39,'Dati input'!$D$38-SUM(PAM!$D$5:D51),'Dati input'!$D$53)))","v":""},{"$f":"IF(A52=\"\",\"\",1.9%/12*PAM!F51)","v":""},"",null,"","","","",{"$f":"IF(A52=\"\",\"\",1.75%/12*PAM!F51)","v":""},""]
[{"$f":"IF(OR(A52='Dati input'!$AF$39,A52=\"\"),\"\",A52+1)","v":""},"","",{"$f":"IF(A53=\"\",\"\",IF(A53<=9,0,IF(A53='Dati input'!$AF$39,'Dati input'!$D$38-SUM(PAM!$D$5:D52),'Dati input'!$D$53)))","v":""},{"$f":"IF(A53=\"\",\"\",1.9%/12*PAM!F52)","v":""},"",null,"","","","",{"$f":"IF(A53=\"\",\"\",1.75%/12*PAM!F52)","v":""},""]
[{"$f":"IF(OR(A53='Dati input'!$AF$39,A53=\"\"),\"\",A53+1)","v":""},"","",{"$f":"IF(A54=\"\",\"\",IF(A54<=9,0,IF(A54='Dati input'!$AF$39,'Dati input'!$D$38-SUM(PAM!$D$5:D53),'Dati input'!$D$53)))","v":""},{"$f":"IF(A54=\"\",\"\",1.9%/12*PAM!F53)","v":""},"",null,"","","","",{"$f":"IF(A54=\"\",\"\",1.75%/12*PAM!F53)","v":""},""]
[{"$f":"IF(OR(A54='Dati input'!$AF$39,A54=\"\"),\"\",A54+1)","v":""},"","",{"$f":"IF(A55=\"\",\"\",IF(A55<=9,0,IF(A55='Dati input'!$AF$39,'Dati input'!$D$38-SUM(PAM!$D$5:D54),'Dati input'!$D$53)))","v":""},{"$f":"IF(A55=\"\",\"\",1.9%/12*PAM!F54)","v":""},"",null,"","","","",{"$f":"IF(A55=\"\",\"\",1.75%/12*PAM!F54)","v":""},""]
[{"$f":"IF(OR(A55='Dati input'!$AF$39,A55=\"\"),\"\",A55+1)","v":""},"","",{"$f":"IF(A56=\"\",\"\",IF(A56<=9,0,IF(A56='Dati input'!$AF$39,'Dati input'!$D$38-SUM(PAM!$D$5:D55),'Dati input'!$D$53)))","v":""},{"$f":"IF(A56=\"\",\"\",1.9%/12*PAM!F55)","v":""},"",null,"","","","",{"$f":"IF(A56=\"\",\"\",1.75%/12*PAM!F55)","v":""},""]
[{"$f":"IF(OR(A56='Dati input'!$AF$39,A56=\"\"),\"\",A56+1)","v":""},"","",{"$f":"IF(A57=\"\",\"\",IF(A57<=9,0,IF(A57='Dati input'!$AF$39,'Dati input'!$D$38-SUM(PAM!$D$5:D56),'Dati input'!$D$53)))","v":""},{"$f":"IF(A57=\"\",\"\",1.9%/12*PAM!F56)","v":""},"",null,"","","","",{"$f":"IF(A57=\"\",\"\",1.75%/12*PAM!F56)","v":""},""]
[{"$f":"IF(OR(A57='Dati input'!$AF$39,A57=\"\"),\"\",A57+1)","v":""},"","",{"$f":"IF(A58=\"\",\"\",IF(A58<=9,0,IF(A58='Dati input'!$AF$39,'Dati input'!$D$38-SUM(PAM!$D$5:D57),'Dati input'!$D$53)))","v":""},{"$f":"IF(A58=\"\",\"\",1.9%/12*PAM!F57)","v":""},"",null,"","","","",{"$f":"IF(A58=\"\",\"\",1.75%/12*PAM!F57)","v":""},""]
[{"$f":"IF(OR(A58='Dati input'!$AF$39,A58=\"\"),\"\",A58+1)","v":""},"","",{"$f":"IF(A59=\"\",\"\",IF(A59<=9,0,IF(A59='Dati input'!$AF$39,'Dati input'!$D$38-SUM(PAM!$D$5:D58),'Dati input'!$D$53)))","v":""},{"$f":"IF(A59=\"\",\"\",1.9%/12*PAM!F58)","v":""},"",null,"","","","",{"$f":"IF(A59=\"\",\"\",1.75%/12*PAM!F58)","v":""},""]
[{"$f":"IF(OR(A59='Dati input'!$AF$39,A59=\"\"),\"\",A59+1)","v":""},"","",{"$f":"IF(A60=\"\",\"\",IF(A60<=9,0,IF(A60='Dati input'!$AF$39,'Dati input'!$D$38-SUM(PAM!$D$5:D59),'Dati input'!$D$53)))","v":""},{"$f":"IF(A60=\"\",\"\",1.9%/12*PAM!F59)","v":""},"",null,"","","","",{"$f":"IF(A60=\"\",\"\",1.75%/12*PAM!F59)","v":""},""]
[{"$f":"IF(OR(A60='Dati input'!$AF$39,A60=\"\"),\"\",A60+1)","v":""},"","",{"$f":"IF(A61=\"\",\"\",IF(A61<=9,0,IF(A61='Dati input'!$AF$39,'Dati input'!$D$38-SUM(PAM!$D$5:D60),'Dati input'!$D$53)))","v":""},{"$f":"IF(A61=\"\",\"\",1.9%/12*PAM!F60)","v":""},"",null,"","","","",{"$f":"IF(A61=\"\",\"\",1.75%/12*PAM!F60)","v":""},""]
[{"$f":"IF(OR(A61='Dati input'!$AF$39,A61=\"\"),\"\",A61+1)","v":""},"","",{"$f":"IF(A62=\"\",\"\",IF(A62<=9,0,IF(A62='Dati input'!$AF$39,'Dati input'!$D$38-SUM(PAM!$D$5:D61),'Dati input'!$D$53)))","v":""},{"$f":"IF(A62=\"\",\"\",1.9%/12*PAM!F61)","v":""},"",null,"","","","",{"$f":"IF(A62=\"\",\"\",1.75%/12*PAM!F61)","v":""},""]
[{"$f":"IF(OR(A62='Dati input'!$AF$39,A62=\"\"),\"\",A62+1)","v":""},"","",{"$f":"IF(A63=\"\",\"\",IF(A63<=9,0,IF(A63='Dati input'!$AF$39,'Dati input'!$D$38-SUM(PAM!$D$5:D62),'Dati input'!$D$53)))","v":""},{"$f":"IF(A63=\"\",\"\",1.9%/12*PAM!F62)","v":""},"",null,"","","","",{"$f":"IF(A63=\"\",\"\",1.75%/12*PAM!F62)","v":""},""]
[{"$f":"IF(OR(A63='Dati input'!$AF$39,A63=\"\"),\"\",A63+1)","v":""},"","",{"$f":"IF(A64=\"\",\"\",IF(A64<=9,0,IF(A64='Dati input'!$AF$39,'Dati input'!$D$38-SUM(PAM!$D$5:D63),'Dati input'!$D$53)))","v":""},{"$f":"IF(A64=\"\",\"\",1.9%/12*PAM!F63)","v":""},"",null,"","","","",{"$f":"IF(A64=\"\",\"\",1.75%/12*PAM!F63)","v":""},""]
[{"$f":"IF(OR(A64='Dati input'!$AF$39,A64=\"\"),\"\",A64+1)","v":""},"","",{"$f":"IF(A65=\"\",\"\",IF(A65<=9,0,IF(A65='Dati input'!$AF$39,'Dati input'!$D$38-SUM(PAM!$D$5:D64),'Dati input'!$D$53)))","v":""},{"$f":"IF(A65=\"\",\"\",1.9%/12*PAM!F64)","v":""},"",null,"","","","",{"$f":"IF(A65=\"\",\"\",1.75%/12*PAM!F64)","v":""},""]
[{"$f":"IF(OR(A65='Dati input'!$AF$39,A65=\"\"),\"\",A65+1)","v":""},"","",{"$f":"IF(A66=\"\",\"\",IF(A66<=9,0,IF(A66='Dati input'!$AF$39,'Dati input'!$D$38-SUM(PAM!$D$5:D65),'Dati input'!$D$53)))","v":""},{"$f":"IF(A66=\"\",\"\",1.9%/12*PAM!F65)","v":""},"",null,"","","","",{"$f":"IF(A66=\"\",\"\",1.75%/12*PAM!F65)","v":""},""]
[{"$f":"IF(OR(A66='Dati input'!$AF$39,A66=\"\"),\"\",A66+1)","v":""},"","",{"$f":"IF(A67=\"\",\"\",IF(A67<=9,0,IF(A67='Dati input'!$AF$39,'Dati input'!$D$38-SUM(PAM!$D$5:D66),'Dati input'!$D$53)))","v":""},{"$f":"IF(A67=\"\",\"\",1.9%/12*PAM!F66)","v":""},"",null,"","","","",{"$f":"IF(A67=\"\",\"\",1.75%/12*PAM!F66)","v":""},""]
[{"$f":"IF(OR(A67='Dati input'!$AF$39,A67=\"\"),\"\",A67+1)","v":""},"","",{"$f":"IF(A68=\"\",\"\",IF(A68<=9,0,IF(A68='Dati input'!$AF$39,'Dati input'!$D$38-SUM(PAM!$D$5:D67),'Dati input'!$D$53)))","v":""},{"$f":"IF(A68=\"\",\"\",1.9%/12*PAM!F67)","v":""},"",null,"","","","",{"$f":"IF(A68=\"\",\"\",1.75%/12*PAM!F67)","v":""},""]
[{"$f":"IF(OR(A68='Dati input'!$AF$39,A68=\"\"),\"\",A68+1)","v":""},"","",{"$f":"IF(A69=\"\",\"\",IF(A69<=9,0,IF(A69='Dati input'!$AF$39,'Dati input'!$D$38-SUM(PAM!$D$5:D68),'Dati input'!$D$53)))","v":""},{"$f":"IF(A69=\"\",\"\",1.9%/12*PAM!F68)","v":""},"",null,"",{"$f":"B69","v":""},"","",{"$f":"IF(A69=\"\",\"\",1.75%/12*PAM!F68)","v":""},""]
[{"$f":"IF(OR(A69='Dati input'!$AF$39,A69=\"\"),\"\",A69+1)","v":""},"",{"$f":"IF(A70=\"\",\"\",D70+E70)","v":""},{"$f":"IF(A70=\"\",\"\",IF(A70<=9,0,IF(A70='Dati input'!$AF$39,'Dati input'!$D$38-SUM(PAM!$D$5:D69),'Dati input'!$D$53)))","v":""},{"$f":"IF(A70=\"\",\"\",1.9%/12*PAM!F69)","v":""},{"$f":"IF(A70=\"\",\"\",F69-D70)","v":""},null,{"$f":"A70","v":""},"",{"$f":"IF(H70=\"\",\"\",K70+L70)","v":""},{"$f":"D70","v":""},{"$f":"IF(A70=\"\",\"\",1.75%/12*PAM!F69)","v":""},{"$f":"IF(H70=\"\",\"\",M69-K70)","v":""}]
[{"$f":"IF(OR(A70='Dati input'!$AF$39,A70=\"\"),\"\",A70+1)","v":""},{"$f":"IF(A71=\"\",\"\",EOMONTH(B70,1))","v":""},"",{"$f":"IF(A71=\"\",\"\",IF(A71<=9,0,IF(A71='Dati input'!$AF$39,'Dati input'!$D$38-SUM(PAM!$D$5:D70),'Dati input'!$D$53)))","v":""},{"$f":"IF(A71=\"\",\"\",1.9%/12*PAM!F70)","v":""},"",null,"","","","",{"$f":"IF(A71=\"\",\"\",1.75%/12*PAM!F70)","v":""},""]
[{"$f":"IF(OR(A71='Dati input'!$AF$39,A71=\"\"),\"\",A71+1)","v":""},"","",{"$f":"IF(A72=\"\",\"\",IF(A72<=9,0,IF(A72='Dati input'!$AF$39,'Dati input'!$D$38-SUM(PAM!$D$5:D71),'Dati input'!$D$53)))","v":""},{"$f":"IF(A72=\"\",\"\",1.9%/12*PAM!F71)","v":""},"",null,"","","","",{"$f":"IF(A72=\"\",\"\",1.75%/12*PAM!F71)","v":""},""]
[{"$f":"IF(OR(A72='Dati input'!$AF$39,A72=\"\"),\"\",A72+1)","v":""},"","",{"$f":"IF(A73=\"\",\"\",IF(A73<=9,0,IF(A73='Dati input'!$AF$39,'Dati input'!$D$38-SUM(PAM!$D$5:D72),'Dati input'!$D$53)))","v":""},{"$f":"IF(A73=\"\",\"\",1.9%/12*PAM!F72)","v":""},"",null,"","","","",{"$f":"IF(A73=\"\",\"\",1.75%/12*PAM!F72)","v":""},""]
[{"$f":"IF(OR(A73='Dati input'!$AF$39,A73=\"\"),\"\",A73+1)","v":""},"","",{"$f":"IF(A74=\"\",\"\",IF(A74<=9,0,IF(A74='Dati input'!$AF$39,'Dati input'!$D$38-SUM(PAM!$D$5:D73),'Dati input'!$D$53)))","v":""},{"$f":"IF(A74=\"\",\"\",1.9%/12*PAM!F73)","v":""},"",null,"","","","",{"$f":"IF(A74=\"\",\"\",1.75%/12*PAM!F73)","v":""},""]
[{"$f":"IF(OR(A74='Dati input'!$AF$39,A74=\"\"),\"\",A74+1)","v":""},"","",{"$f":"IF(A75=\"\",\"\",IF(A75<=9,0,IF(A75='Dati input'!$AF$39,'Dati input'!$D$38-SUM(PAM!$D$5:D74),'Dati input'!$D$53)))","v":""},{"$f":"IF(A75=\"\",\"\",1.9%/12*PAM!F74)","v":""},"",null,"","","","",{"$f":"IF(A75=\"\",\"\",1.75%/12*PAM!F74)","v":""},""]
[{"$f":"IF(OR(A75='Dati input'!$AF$39,A75=\"\"),\"\",A75+1)","v":""},"","",{"$f":"IF(A76=\"\",\"\",IF(A76<=9,0,IF(A76='Dati input'!$AF$39,'Dati input'!$D$38-SUM(PAM!$D$5:D75),'Dati input'!$D$53)))","v":""},{"$f":"IF(A76=\"\",\"\",1.9%/12*PAM!F75)","v":""},"",null,"","","","",{"$f":"IF(A76=\"\",\"\",1.75%/12*PAM!F75)","v":""},""]
[{"$f":"IF(OR(A76='Dati input'!$AF$39,A76=\"\"),\"\",A76+1)","v":""},"","",{"$f":"IF(A77=\"\",\"\",IF(A77<=9,0,IF(A77='Dati input'!$AF$39,'Dati input'!$D$38-SUM(PAM!$D$5:D76),'Dati input'!$D$53)))","v":""},{"$f":"IF(A77=\"\",\"\",1.9%/12*PAM!F76)","v":""},"",null,"","","","",{"$f":"IF(A77=\"\",\"\",1.75%/12*PAM!F76)","v":""},""]
[{"$f":"IF(OR(A77='Dati input'!$AF$39,A77=\"\"),\"\",A77+1)","v":""},"","",{"$f":"IF(A78=\"\",\"\",IF(A78<=9,0,IF(A78='Dati input'!$AF$39,'Dati input'!$D$38-SUM(PAM!$D$5:D77),'Dati input'!$D$53)))","v":""},{"$f":"IF(A78=\"\",\"\",1.9%/12*PAM!F77)","v":""},"",null,"","","","",{"$f":"IF(A78=\"\",\"\",1.75%/12*PAM!F77)","v":""},""]
[{"$f":"IF(OR(A78='Dati input'!$AF$39,A78=\"\"),\"\",A78+1)","v":""},"","",{"$f":"IF(A79=\"\",\"\",IF(A79<=9,0,IF(A79='Dati input'!$AF$39,'Dati input'!$D$38-SUM(PAM!$D$5:D78),'Dati input'!$D$53)))","v":""},{"$f":"IF(A79=\"\",\"\",1.9%/12*PAM!F78)","v":""},"",null,"","","","",{"$f":"IF(A79=\"\",\"\",1.75%/12*PAM!F78)","v":""},""]